{"text_format":"1","workbook":"xlsx","n_sheets":18,"sheets":["ReadMe","ReadMe (2)","MECH-SUM","MECH-CHK","MECH-ECONO org","MECH-CHK (2)","SWH-CHK","MECH-VENT","MECH-VENT org","MECH-ECONO","MECH-FANSYS-SUM","MECH-FANSYS","MECH-FANSYS-DOC","MECH-LOAD-CALC","MECH-EQ","MECH-EQ BOILER-CHILLER","MECH-EQ HEAT REJECTION","MECH-EQ AIR SYSTEM TERMINALS"],"not_rendered":{"charts":0,"images":2,"macros":1,"external_links":0,"defined_names":141,"comments":1,"pivot_tables":0},"unopened":[],"bounds":{"document_bytes":16777216,"sheet_cells":100000,"rows_first":2000,"rows_last":500,"rows_between":2000,"halvings":0,"cell_chars":16384,"cell_head_chars":4096},"cells_cut":0,"cells_raw":0,"read":"whole","date_system":"1900"}

{"sheet":"ReadMe","index":0,"n_rows":34,"n_cols":2,"rows_kept":34,"cut":false,"hidden":false,"merged":[[27,0,30,0],[31,0,32,0],[13,0,19,0],[0,0,0,1],[1,0,1,1],[9,0,10,0],[21,0,23,0],[24,0,26,0],[24,1,26,1]]}
["Instructions for Electronic Forms"]
["2015 Washington State Energy Code Compliance Forms for Commercial Buildings including R2 & R3 over 3 stories and all R1 "]
[null,"Revised January 2017"]
[null,"     Commercial Provision Chapters 1 - 5 of the 2015 Washington State Energy Code apply to all commercial occupancies, R-2 and R-3 occupanies greater than 3 stories above grade, and R-1 occupancy (all building heights)."]
["Intro","     This file, MECH15-v2.XLSM, has electronic compliance forms for mechanical provisions as defined in Sections C403, C404, C408, and Chapter 5. There are two companion files: ENV15-v2.XLSM (Sections C303, C402, Chapter 5, and Appendix A envelope requirements), LTG15-v3.XLSM (Section C405 and Chapter 5 lighting systems requirements). "]
["Energy Code","    This form is a compliance aid and is not a substitute for the full energy code text or specific jurisdiction compliance requirements. Users should refer to the code text and contact the local jurisdiction for complete information. The full 2015 WSEC code text is available for download from the NEEC website:"]
[null,"http:/www.neec.net/energy-codes"]
["Training ","Refer to the NEEC website for instruction on how to complete all of the 2015 WSEC Compliance Forms."]
["Start-up","Select this file from the NEEC website to download to your computer.  When opening the file be sure to Enable Macros, and if applicable, Enable Content."]
["Overview","     This file is an Excel workbook that contains multiple compliance forms and resources in Excel worksheets. Each worksheet is indicated by a tab at the bottom of the screen. If the tabs are not visible, set the View in Excel to Full Screen.  You may visit each worksheet by selecting it's tab.  "]
[null,"     Most calculations are automated. Cells that display informational text and the results of calculations are write-protected and cannot be edited. "]
["Save Files","This file is saved in the same manner as any standard Excel file.  "]
["Getting Around","     Some forms have two pages. Both pages are available on screen when you select the tab for a form (worksheet). Use the scroll bars to find the second page located below the first page."]
["Input Cells","     All general project information and the date are entered once on MECH-SUM. This information is automatically replicated on all other MECH forms. "]
[null,"     Only input cells are accessible. If you try to edit a write-protected cell an error message will appear requesting a password.  A password IS NOT required to complete these forms. You may use the TAB key to move to the next input cell. If the TAB doesn't take you where you want to go, use your mouse to move around the form. "]
[null,"     Avoid excessively long text strings when entering information. In some cases, text that extends beyond the available space will not be visible. In most cases the text will wrap within the cell. This may force part of the form onto a new page."]
[null,"     To enter the date, use this format: mm/dd/yyyy.  For example, you would enter 7/1/2013 or 12/21/2014."]
[null,"     Check boxes can be checked or unchecked by clicking in the box with your mouse. Radio buttons (circles) allow only one in a set to be selected."]
[null,"     Drop-down lists have an arrow at the right side of the cell. Click on the arrow with your mouse and select the appropriate option. Use the delete button on your computer to clear a drop-down entry."]
[null,"     When a form has a space for notes or explanation, click anywhere in the space to edit. "]
["Personal-izing","     You can personalize the forms with your company name, address, phone, or any other information. This is done by editing the header or footer in Excel."]
["Adding and Removing Lines","     Many tables, such as for listing proposed mechanical systems, have a certain number of lines available for entering data. You may need more lines to enter all your information. Where this feature is available, you can add additional lines to the table by selecting the \"+\" button on the right hand side of the table with your mouse. If you can't see the \"+\" button, scroll to the right or decrease the View Zoom setting for the worksheet. "]
[null,"     To remove lines that you have added, select the \"-\" button with your mouse. This will delete the last line of the section.  You cannot remove lines that were not added; an error message will appear if you try."]
[null,"     If you add additional lines with this method, the pagination may be affected forcing the forms to carry additional lines over to other pages.  Be sure to submit all pages to the plans examiner."]
["Adding MECH-FANSYS Forms","    A completed MECH-FANSYS form is required for each applicable fan system. One copy of this form is included in the workbook. If additional MECH-FANSYS forms are needed, select the \"Insert Fan System Form\" button in MECH-FANSYS-SUM or MECH-FANSYS. An added form may be deleted by selecting the \"Delete This Fan System\" button within the added MECH-FANSYS form."]
[]
[]
["Printing","     All forms are set-up to be printed in letter format, with the exception of the MECH-EQ Cooling & Heating Equipment Schedule Form. This MECH-EQ form may be printed in either landscape or letter format, however the font is larger and easier to read  when printed in landscape."]
[null,"     If you are losing form details when printing, you may have a shortage of printer memory.  Try printing problem pages individually."]
[null,"     Only selected forms are printed. To select one or more forms, hold down the Ctrl key and click the tabs of the worksheets you need. Issue the File Print Selected Sheets command. To print the entire set, use File Print Entire Workbook."]
[null,"     Forms (worksheets) in a workbook may not be deleted because the file is locked."]
["Clean Forms","    To print blank forms to fill out by hand, delete all of the heading information at the beginning of MECH-SUM."]
[null,"     For each radio button group there is a button labeled \"Clear.\" Clicking this button will clear the other buttons so that they will print as empty circles.  The \"Clear\" button will not print."]
[null,"End of Instructions for Electronic Forms"]

{"sheet":"ReadMe (2)","index":1,"n_rows":34,"n_cols":5,"rows_kept":34,"cut":false,"hidden":true,"merged":[[21,0,23,0],[24,0,26,0],[24,1,26,1],[27,0,30,0],[31,0,32,0],[13,0,19,0],[0,0,0,1],[0,3,0,4],[1,0,1,1],[1,3,1,4],[9,0,10,0]]}
["Instructions for Electronic Forms",null,null,"Form Requirements"]
["2015 Washington State Energy Code Compliance Forms for Commercial Buildings including R2 & R3 over 3 stories and all R1 ",null,null,{"$f":"A2","v":"2015 Washington State Energy Code Compliance Forms for Commercial Buildings including R2 & R3 over 3 stories and all R1 "}]
[null,"Revised January 2016",null,null,{"$f":"B3","v":"Revised January 2016"}]
[null,"     Commercial Provision Chapters 1 - 5 of the 2015 Washington State Energy Code apply to all commercial occupancies, R-2 and R-3 occupanies greater than 3 stories above grade, and R-1 occupancy (all building heights)."]
["Intro","     This file, MECH15-v2.XLSM, has electronic compliance forms for mechanical provisions as defined in Sections C403, C404, C408, and Chapter 5. There are two companion files: ENV15-v2.XLSM (Sections C303, C402, Chapter 5, and Appendix A envelope requirements), LTG15-v2.XLSM (Section C405 and Chapter 5 lighting systems requirements). "]
["Energy Code","    This form is a compliance aid and is not a substitute for the full energy code text or specific jurisdiction compliance requirements. Users should refer to the code text and contact the local jurisdiction for complete information. The full 2015 WSEC code text is available for download from the NEEC website:"]
[null,"http:/www.neec.net/energy-codes"]
["Training ","Refer to the NEEC website for instruction on how to complete all of the 2015 WSEC Compliance Forms."]
["Start-up","Select this file from the NEEC website to download to your computer.  When opening the file be sure to Enable Macros, and if applicable, Enable Content."]
["Overview","     This file is an Excel workbook that contains multiple compliance forms and resources in Excel worksheets. Each worksheet is indicated by a tab at the bottom of the screen. If the tabs are not visible, set the View in Excel to Full Screen.  You may visit each worksheet by selecting it's tab.  "]
[null,"     Most calculations are automated. Cells that display informational text and the results of calculations are write-protected and cannot be edited. "]
["Save Files","This file is saved in the same manner as any standard Excel file.  "]
["Getting Around","     Some forms have two pages. Both pages are available on screen when you select the tab for a form (worksheet). Use the scroll bars to find the second page located below the first page."]
["Input Cells","     All general project information and the date are entered once on MECH-SUM. This information is automatically replicated on all other MECH forms. "]
[null,"     Only input cells are accessible. If you try to edit a write-protected cell an error message will appear requesting a password.  A password IS NOT required to complete these forms. You may use the TAB key to move to the next input cell. If the TAB doesn't take you where you want to go, use your mouse to move around the form. "]
[null,"     Avoid excessively long text strings when entering information. In some cases, text that extends beyond the available space will not be visible. In most cases the text will wrap within the cell. This may force part of the form onto a new page."]
[null,"     To enter the date, use this format: mm/dd/yyyy.  For example, you would enter 7/1/2013 or 12/21/2014."]
[null,"     Check boxes can be checked or unchecked by clicking in the box with your mouse. Radio buttons (circles) allow only one in a set to be selected."]
[null,"     Drop-down lists have an arrow at the right side of the cell. Click on the arrow with your mouse and select the appropriate option. Use the delete button on your computer to clear a drop-down entry."]
[null,"     When a form has a space for notes or explanation, click anywhere in the space to edit. "]
["Personal-izing","     You can personalize the forms with your company name, address, phone, or any other information. This is done by editing the header or footer in Excel."]
["Adding and Removing Lines","     Many tables, such as for listing proposed mechanical systems, have a certain number of lines available for entering data. You may need more lines to enter all your information. Where this feature is available, you can add additional lines to the table by selecting the \"+\" button on the right hand side of the table with your mouse. If you can't see the \"+\" button, scroll to the right or decrease the View Zoom setting for the worksheet. "]
[null,"     To remove lines that you have added, select the \"-\" button with your mouse. This will delete the last line of the section.  You cannot remove lines that were not added; an error message will appear if you try."]
[null,"     If you add additional lines with this method, the pagination may be affected forcing the forms to carry additional lines over to other pages.  Be sure to submit all pages to the plans examiner."]
["Adding MECH-FANSYS Forms","    A completed MECH-FANSYS form is required for each applicable fan system. One copy of this form is included in the workbook. If additional MECH-FANSYS forms are needed, select the \"Insert Fan System Form\" button in MECH-FANSYS-SUM or MECH-FANSYS. An added form may be deleted by selecting the \"Delete This Fan System\" button within the added MECH-FANSYS form."]
[]
[]
["Printing","     All forms are set-up to be printed in letter format, with the exception of the MECH-EQ Cooling & Heating Equipment Schedule Form. This MECH-EQ form may be printed in either landscape or letter format, however the font is larger and easier to read  when printed in landscape."]
[null,"     If you are losing form details when printing, you may have a shortage of printer memory.  Try printing problem pages individually."]
[null,"     Only selected forms are printed. To select one or more forms, hold down the Ctrl key and click the tabs of the worksheets you need. Issue the File Print Selected Sheets command. To print the entire set, use File Print Entire Workbook."]
[null,"     Forms (worksheets) in a workbook may not be deleted because the file is locked."]
["Clean Forms","    To print blank forms to fill out by hand, delete all of the heading information at the beginning of MECH-SUM."]
[null,"     For each radio button group there is a button labeled \"Clear.\" Clicking this button will clear the other buttons so that they will print as empty circles.  The \"Clear\" button will not print."]
[null,"End of Instructions for Electronic Forms"]

{"sheet":"MECH-SUM","index":2,"n_rows":99,"n_cols":9,"rows_kept":99,"cut":false,"hidden":false,"merged":[[19,0,19,1],[24,0,26,1],[26,4,26,8],[27,4,27,8],[36,0,36,1],[23,0,23,1],[2,3,2,6],[2,7,2,8],[3,3,3,6],[4,3,4,6],[5,3,5,6],[6,3,6,6],[7,3,7,6],[11,3,12,8],[13,3,13,8],[18,0,18,1],[16,0,16,1],[17,0,17,1],[14,0,14,1],[15,0,15,1]]}
["Mechanical Summary",null,null,null,null,null,null,null,"MECH-SUM"]
[{"$f":"ReadMe!A2","v":"2015 Washington State Energy Code Compliance Forms for Commercial Buildings including R2 & R3 over 3 stories and all R1 "},null,null,null,null,null,null,null,{"$f":"ReadMe!B3","v":"Revised January 2017"}]
["Project Information",null,"Project Title:","1 - This title will copy onto other forms",null,null,null,"2015-01-01"]
[null,null,null,null,null,null,null,"For Building Dept. Use"]
[null,null,"Company Name:"]
[null,null,"Company Address:"]
[null,null,"Applicant Name:"]
[null,null,"Applicant Phone:"]
[]
["Project Description"]
[]
[]
[]
[]
["Design Load Calculations"]
["Mechanical Schedules"]
["Dedicated Outdoor Air System Requirements and High Efficiency VAV Alternate"]
["Fan Power"]
["HVAC Hydronic Systems"]
["C406 Additional Efficiency Options - Mechanical"]
["Mechanical Summary, pg. 2",null,null,null,null,null,null,null,"MECH-SUM"]
[{"$f":"A2","v":"2015 Washington State Energy Code Compliance Forms for Commercial Buildings including R2 & R3 over 3 stories and all R1 "},null,null,null,null,null,null,null,{"$f":"I2","v":"Revised January 2017"}]
[]
["Service Water Heating Systems"]
["Commissioning "]
[]
[]
[]
[]
["Low Energy and Semi-Heated Spaces",null,null,null,null,"*"]
["Space Type","Location in Plan(s)","Space(s) Served","Area Served, square feet","Heating Capacity, Btu/h \n(Note 4)","Cooling Capacity, Btu/h \n(Note 5)","Peak Space Conditioning Capacity, \nBtu/h-sf","Compliance Check","Notes"]
[null,null,null,null,null,null,{"$f":"IF(AND(D32>0, E32<>\"\",F32<>\"\"),MAX(E32,F32)/D32,\"\")","v":""},{"$f":"IF(AND(D32>0,E32<>\"\",F32<>\"\",A32<>\"\"),IF(A32=\"low energy\",IF(G32<=3.41214,\"COMPLIES\",\"DOES NOT COMPLY\"),IF(AND(G32<=8,F32=0),\"COMPLIES\",\"DOES NOT COMPLY\")),\"\")","v":""}]
[null,null,null,null,null,null,{"$f":"IF(AND(D33>0, E33<>\"\",F33<>\"\"),MAX(E33,F33)/D33,\"\")","v":""},{"$f":"IF(AND(D33>0,E33<>\"\",F33<>\"\",A33<>\"\"),IF(A33=\"low energy\",IF(G33<=3.41214,\"COMPLIES\",\"DOES NOT COMPLY\"),IF(AND(G33<=8,F33=0),\"COMPLIES\",\"DOES NOT COMPLY\")),\"\")","v":""}]
[null,null,null,null,null,null,{"$f":"IF(AND(D34>0, E34<>\"\",F34<>\"\"),MAX(E34,F34)/D34,\"\")","v":""},{"$f":"IF(AND(D34>0,E34<>\"\",F34<>\"\",A34<>\"\"),IF(A34=\"low energy\",IF(G34<=3.41214,\"COMPLIES\",\"DOES NOT COMPLY\"),IF(AND(G34<=8,F34=0),\"COMPLIES\",\"DOES NOT COMPLY\")),\"\")","v":""}]
[null,null,null,null,null,null,{"$f":"IF(AND(D35>0, E35<>\"\",F35<>\"\"),MAX(E35,F35)/D35,\"\")","v":""},{"$f":"IF(AND(D35>0,E35<>\"\",F35<>\"\",A35<>\"\"),IF(A35=\"low energy\",IF(G35<=3.41214,\"COMPLIES\",\"DOES NOT COMPLY\"),IF(AND(G35<=8,F35=0),\"COMPLIES\",\"DOES NOT COMPLY\")),\"\")","v":""}]
[]
[]
[]
[]
[]
[]
[]
[]
["Simple single zone system"]
["Complex single zone system"]
["Complex multi-zone system"]
[]
[]
["Low energy"]
["Semi-heated"]
[]
[]
["Yes"]
["No"]
[]
["Yes"]
["No cooling, NA"]
["Exp1"]
["Exp2"]
["Exp3"]
["Exp4"]
["Exp5"]
["Exp6"]
["Exp7"]
["Exp8"]
["Exp9"]
["Exp10a"]
["Exp10b"]
["Exp10c"]
["Table C503.4"]
[]
[]
["C403.2.6.1 Ventilation"]
["C403.2.5.4.2 Lab exhaust"]
["C403.2.6.2 Steam condensate"]
["C403.2.6.3 Remote refrigeration condenser"]
["C404.10.4 Pool & spa exhaust"]
["Provided but not required"]
["Not Required"]
[]
["Heating and cooling"]
["Heating only"]
["Cooling only"]
["No heating or cooling"]
[]
[]
["Constant volume (CV)"]
["Variable air volume (VAV)"]
["Two speed (TS)"]
["Variable speed (VS)"]
["Not applicable"]
[]
["Minimum per IMC"]
["Minimum per OSHA"]
["Minimum per WAC"]
["Minimum per IFC"]
["Natural ventilation per IMC 402"]
["ASHRAE 62.1 per WS-IMC 403.2"]
["Not Applicable"]

{"sheet":"MECH-CHK","index":3,"n_rows":192,"n_cols":6,"rows_kept":192,"cut":false,"hidden":false,"merged":[[138,0,139,0],[138,1,139,1],[138,2,139,2],[170,0,172,0],[170,1,172,1],[170,2,172,2],[142,0,143,0],[142,1,143,1],[142,2,143,2],[161,0,163,0],[161,1,163,1],[161,2,163,2],[167,0,167,5],[146,0,146,5],[165,0,165,5],[73,2,74,2],[114,2,116,2],[131,0,132,0],[131,1,132,1],[131,2,132,2],[128,0,128,5],[121,0,122,0],[121,1,122,1],[121,2,122,2],[104,0,105,0],[104,1,105,1],[104,2,105,2],[100,0,102,0],[86,0,86,5],[73,0,74,0],[87,0,88,0],[64,2,65,2],[64,0,65,0],[70,0,72,0],[70,1,72,1],[70,2,72,2],[64,1,65,1],[68,0,69,0],[68,1,69,1],[68,2,69,2],[2,2,2,3],[3,0,3,3],[5,0,5,5],[10,2,11,2],[12,0,13,0],[10,0,11,0],[10,1,11,1],[12,1,13,1],[12,2,13,2],[22,0,23,0],[22,1,23,1],[22,2,23,2],[40,0,42,0],[57,0,59,0],[57,1,59,1],[57,2,59,2],[45,0,46,0],[45,1,46,1],[45,2,46,2],[40,1,42,1],[40,2,42,2],[35,0,35,5],[76,2,77,2],[80,2,82,2],[87,1,88,1],[87,2,88,2],[100,1,102,1],[100,2,102,2],[92,1,93,1],[92,2,93,2],[114,0,116,0],[80,0,82,0],[80,1,82,1],[76,0,77,0],[76,1,77,1],[92,0,93,0],[114,1,116,1],[177,0,177,5],[168,0,169,0],[168,1,169,1],[168,2,169,2],[73,1,74,1],[106,0,107,0],[106,1,107,1],[106,2,107,2],[108,0,109,0],[108,1,109,1],[108,2,109,2],[134,0,134,5],[136,0,136,5],[112,0,113,0],[112,1,113,1],[112,2,113,2]]}
["Mechanical Permit Plans Checklist",null,null,null,null,"MECH-CHK"]
[{"$f":"ReadMe!A2","v":"2015 Washington State Energy Code Compliance Forms for Commercial Buildings including R2 & R3 over 3 stories and all R1 "},null,null,null,null,{"$f":"ReadMe!B3","v":"Revised January 2017"}]
["Project Title:",null,{"$f":"IF('MECH-SUM'!D3=\"1 - This title will copy onto other forms\",\"Fill this line out on MECH-SUM\",'MECH-SUM'!D3)","v":"Fill this line out on MECH-SUM"},null,"Date",{"$f":"'MECH-SUM'!H3","v":"2015-01-01"}]
["The following information is necessary to check a permit application for compliance with the mechanical systems and equipment requirements of the Washington State Energy Code, Commercial Provisions."]
["Applicable (yes,no,na)","Code Section","Code Provision","Information Required - Must be in permit documents","Location in Documents","Building Department Notes"]
["Equipment - Sizing, Performance and Type"]
[null,"C403.1","Exempt process equipment","Identify equipment to be used in manufacturing, industrial or commercial processes that do not provide space conditioning; identify provisions applicable to this equipment per C403.1 exception"]
[null,"C403.2.1","Load calculations","Provide load calculations performed per ASHRAE Std 183 or equivalent, using design parameters per C302 and Appendix C; include load adjustments to account for energy recovery"]
[null,"C403.2.2","Equipment and system sizing","Indicate that output capacities of heating and cooling equipment and systems are no greater than the smallest available equipment size that exceeds the calculated loads; note exceptions taken"]
[null,"C403.2.3\nC403.2.3.2\nC403.2.13.1","HVAC equipment performance requirements (efficiency)","Provide equipment schedules on plans or complete MECH-EQ forms indicating type, capacity, rated and WSEC minimum efficiencies for all heating and cooling equipment; include supply and OSA cfms and operating hours for all air systems; identify heating and cooling equipment that does not have a corresponding WSEC minimum efficiency (manufacturer rated)"]
[null,"C405.8\nC403.2.14","Electric motor efficiency","List all motors ≥ 1/12 hp (that are not integral to a rated piece of equipment) in the mechanical or electrical equipment schedules on plans; indicate hp, rpm, number of poles and rated efficiency, or exception applied"]
[null,null,null,"For fractional hp motors (1/12 - 1 hp), indicate whether they are an electronically commutated motor, have rated efficiency of at least 70%, or exception taken"]
[null,"C403.2.11.1","Fan power limitation","For all HVAC fan systems that provide heating and / or cooling, provide system total nameplate hp in MECH-FANSYS-SUM form"]
[null,null,null,"For all applicable HVAC systems with total fan motor hp > 5hp, verify fan system motor hp or bhp complies with fan power limits per equations in Table C403.2.11.1(1), provide MECH-FANSYS form for each system"]
[null,"C403.2.11.2","Motor nameplate hp","For all applicable HVAC systems with total fan motor hp > 5hp, indicate fan motors specified are the smallest available motor hp size greater than fan bhp, note exceptions taken"]
[null,"C403.2.11.3","Fan efficiency","For all applicable HVAC systems with total fan motor hp > 5hp, identify in equipment schedule all fans required to comply with fan efficiency grade and indicate rated FEG is ≥ 67, or exception taken; indicate these fans are sized so total efficiency is within 15% of the fan maximum total efficiency"]
[null,"C403.2.11.4","Group R occupancy exhaust fan efficacy","For all exhaust fans < 400 cfm in Group R occupancies, indicate in equipment schedule the fan flow rate and efficacy (cfm/watt), or exception taken; refer to Table C403.2.11.4 (CE-57)"]
[null,"C403.2.13","Variable flow capacity - \nfans","For fan motors ≥ 7.5 hp, indicate method of variable flow control (VSD or equivalent method) in equipment schedule, or exception taken; for equivalent method for an HVAC system refer to HVAC System Controls for additional requirements"]
[null,"C403.2.3","Maximum air cooled chiller capacity","For chilled water plants and buildings with > 500 tons of cooling capacity, indicate air-cooled chiller capacity is ≤ 100 tons, or exception taken"]
[null,"C403.4","Large capacity cooling systems","For buildings with ≥ 300 tons of cooling capacity, indicate method of multi-stage or variable capacity control (VSD, multiple staged compressors, or max capacity of any single unit < 66% of the total)"]
[null,"C403.2.3.1","Non-standard water-cooled centrifugal chillers ","For water-cooled centrifugal chillers not designed for operation at standard conditions, provide calculations documenting maximum full load and part load rated equipment performance requirements"]
[null,"C403.2.13.1\nC403.4.3.2","Centrifugal fan open-circuit cooling towers","For open-circuit centrifugal fan cooling towers with ≥ 1,100 gpm capacity, indicate cooling towers comply with efficiency requirements for axial fan open circuit cooling towers"]
[null,"C403.4.2\nC403.4.2.5","Large capacity boiler systems","For single boilers with > 500,000 Btu/h capacity, indicate multi-stage or modulating burner "]
[null,null,null,"For boiler system (single or multiple) with > 1,000,000 Btu/h capacity, indicate turndown ratio per Table C403.4.2.5 and method (multiple single input boilers, modulating boilers, or combination) "]
[null,"C403.2.13","Variable flow capacity - \npumps","For pump motors ≥ 7.5 hp, indicate method of variable flow control (VSD or equivalent method) in equipment schedule, or exception taken; for equivalent method for a hydronic system refer to Hydronic System Controls for additional requirements"]
[null,"C403.2.3","Gas and oil-fired forced air furnace and unit heaters","For forced air furnaces with capacity ≥ 225,000 Btu/h and all unit heaters, indicate in equipment schedule intermittent ignition or IID, flue or draft damper, and rated jacket loss"]
[null,"C403.2.4.8","Combustion heating equipment","For combustion heating equipment with output capacity > 225,000 Btu/h, indicate modulating or staged combustion control "]
[null,"C403.2.3.3","Packaged electric heating / cooling equipment","Verify all packaged electric equipment with > 6,000 Btu/h cooling capacity and any amount of heating is a heat pump; include in equipment schedules"]
[null,"C403.2.12","Heating outside a building","Indicate systems providing heating in non-enclosed outdoor occupied spaces are radiant systems; refer to HVAC System Controls for additional requirements "]
[null,"C403.2.7.1","Kitchen exhaust hoods","Indicate on plans the type, duty and exhaust air rate of each kitchen hood, refer to HVAC System Controls for additional requirements"]
[null,"C403.2.4.3","Outdoor supply air, exhaust and relief dampers","Indicate locations of OSA intake, and exhaust and relief outlet dampers on plans; indicate whether dampers are Class 1 motorized, or gravity and exception taken (include leakage rating, cfm/sf); refer to HVAC System Controls for additional requirements for OSA dampers "]
[null,"C403.2.4.3","Return air dampers","Indicate locations of return air dampers that are integral to economizer operation; verify dampers are motorized; indicate whether dampers are Class 1, or within packaged equipment eligible for leakage rating exception (include leakage rating, cfm/sf)"]
[null,"C403.2.4.3","Stairway and shaft vent dampers","Indicate location of stairway and shaft vent dampers on plans; verify dampers are Class 1 motorized; refer to HVAC System Controls for additional requirements"]
[null,"C403.2.4.4","Zone isolation dampers","For systems serving areas > 25,000 sf or spanning more than one floor, that include areas that are expected to be occupied non-simultaneously; identify isolation zone areas on plans and locations of associated isolation dampers in HVAC distribution system; refer to HVAC System Controls for additional requirements"]
[null,"C403.2.3.4","Humidification","For cooling systems with humidification equipment that are also required to have air economizer, indicate humidifier is adiabatic (direct evaporative or fog atomization), or exception taken "]
["Additional Efficiency Package Option, More Efficient HVAC Equipment & Fan Performance - \nMust comply with all 3 provisions to be eligible"]
[null,"C406.2.1\nC403.2.3","HVAC system selection","To comply with additional efficiency package option, calculate the percentage of heating and cooling equipment in the project (based on output capacity) that do not have a corresponding WSEC listed efficiency; shall be less than 10% to comply"]
[null,"C406.2.2\nC403.2.3","Minimum equipment efficiency ","To comply with additional efficiency package option, indicate that all listed heating and cooling equipment have a rated efficiency that exceeds WSEC listed efficiency by at least 15%"]
[null,"C406.2.3\nC403.2.11.3","Minimum fan efficiency ","To comply with additional efficiency package option, indicate rated FEG of stand alone fans is ≥ 71; indicate these fans are sized so the fan efficiency at design conditions is within 10% of the maximum total or static efficiency"]
["HVAC System Controls"]
[null,"C403.2.4.1","Thermostatic controls\n(thermostats and humidistats)","Indicate locations of thermostatic and humidity control devices and the zones they serve on plans, including perimeter system zones"]
[null,null,null,"Where adjacent (neighboring) zones are controlled by separate thermostats (including perimeter systems used to offset heat gain or loss), and are connected by permanent openings > 10% of either zone sf area, indicate controls configured to prevent adjacent zones from operating in conflicting modes (one in heat, other in cool); applies to adjacent perimeter zones, adjacent nonperimeter zones, and adjacent perimeter and nonperimeter zones"]
[null,null,null,"If applying Exception 2 to nonperimeter zones adjacent to perimeter zones, indicate that setpoints and deadband settings in these zones are coordinated so cooling in a nonperimeter zone does not occur until the temperature in that zone is 5°F higher than the adjacent perimeter zone temperature in heating"]
[null,"C403.2.4.1.1","Heat pump supplementary heat","Indicate staged heating operation with compression as the first stage of heating and supplemental heating controlled with outdoor lock-out temperature set to 40°F or less"]
[null,"C403.2.4.1.2","Deadband","Indicate zone thermostatic controls configured with 5°F minimum deadband for systems that control both heating and cooling"]
[null,"C403.2.4.1.3","Setpoint overlap restriction (thermostats)","If separate heating and cooling systems with separate thermostatic control devices are used to serve a zone, indicate locations of both thermostatic control devices and the zone they serve on plans"]
[null,null,null,"Indicate a limit switch, mechanical stop or DDC control with programming to prevent simultaneous heating and cooling"]
[null,"C403.2.4.2\n C403.2.4.2.1\nC403.2.4.2.2","Automatic setback and shutdown","Indicate zone thermostatic controls configured with required automatic setback and manual override functions, setback temperatures, and control method (automatic time clock or programmable controls); note exceptions taken"]
[null,"C403.2.4.2.3","Automatic (optimum) start ","Indicate system controls that adjust equipment start time required to bring each area served up to design temperature just prior to scheduled occupancy"]
[null,"C403.2.4.3","Outdoor supply air dampers","Indicate automatic controls configured to close OSA damper during unoccupied equipment operation; not including economizer cooling, night flush or IMC required OSA / exhaust"]
[null,"C403.2.4.3","Stairway and shaft vent dampers","Indicate method of activation of stairway and shaft vent dampers (fire alarm or interruption of power)"]
[null,"C403.2.4.4","Zone isolation controls","For systems serving areas > 25,000 sf or spanning more than one floor, that include areas that are expected to be occupied non-simultaneously; indicate controls that allow for independent space conditioning of isolation zones; or exception taken"]
[null,"C403.2.12","Heating outside a building","Indicate occupancy sensing or timer switch controls configured to automatically shut off heating system when area served is unoccupied"]
[null,"C403.2.4.5","Snow melt systems","Indicate automatic controls configured to shut off system when pavement temperature exceeds 50°F and no precipitation is falling, and when outdoor air temperature exceeds 40°F "]
[null,"C403.2.4.6","Freeze protection system controls","Indicate automatic controls to shut off system when outdoor temperature exceeds 40°F, or conditions protect fluid from freezing"]
[null,"C403.2.4.9","Group R1 hotel / motel guest rooms","For hotels and motels with over 50 guest rooms, indicate automatic controls serving guest rooms that are capable of setback (heating) and set-up (cooling) of temperature setpoint by at least 5°F; indicate control method - activated by room entry or occupancy sensor"]
[null,"C403.2.4.10\nC403.2.4.11","Group R2 / R3 dwelling units, Group R2 sleeping units","For primary space conditioning system, indicate 5-2 programmable thermostats capable of two setback periods per day; for all thermostats indicate purpose (heating only, cooling only, or both), required temperature range and at minimum a 10°F deadband; or exception taken"]
[null,"C403.2.6\nC403.2.11.4","Ventilation","Indicate method of ventilation air delivery (natural or mechanical) for each zone"]
[null,null,null,"If mechanically delivered, indicate that systems are configured to provide not more than 150% of, but at least the minimum required volume of outdoor air to each zone per IMC, ASHRAE 62.1 or other applicable code (WAC, OSHA, etc); or exception taken "]
[null,null,null,"If delivered via natural ventilation, identify required elements per IMC including minimum openable area to the outdoors or qualifying adjoining spaces "]
[null,"C403.2.6.2","Demand controlled ventilation","Identify spaces > 500 sf with occupant load > 25 people/1,000 sf per IMC; for each space indicate whether it is served by an HVAC system with total design OSA > 3,000 cfm, and / or  the system has airside economizer or automatic modulating OSA damper; indicate OSA controls are configured to provide demand controlled ventilation or provide supporting documentation for applied exception"]
[null,"C403.2.6.3","Occupancy sensors","For gyms, classrooms, auditoriums and conference rooms > 500 sf, indicate occupancy-based OSA control when space is unoccupied and method (closes OSA damper or shuts-off equipment); or alternate means provided to automatically reduce OSA when space is partially occupied"]
[null,"C403.2.6.4 \nC403.2.6.4.1","Enclosed loading dock ventilation","For enclosed loading docks, indicate ventilation / exhaust system method of activation (gas detection system for CO and NO2, or occupancy sensors), and control method (staged or modulating)"]
[null,"C403.2.6.4 \nC403.2.6.4.2","Enclosed parking garage ventilation","For enclosed parking garages, indicate ventilation / exhaust system activated by gas detection system for CO and NO2, and control method (staged or modulating); or exception taken"]
[null,"C403.2.7.1","Kitchen exhaust hoods","Provide calculations that show a balanced accounting of total kitchen exhaust (include all hoods) with % of: supply air, transfer air from adjacent spaces, and make-up air; if applicable, indicate that direct make-up air to each hood does not exceed 10% of hood exhaust"]
[null,null,null,"For kitchens with total hood exhaust exceeding 2,000 cfm, indicate exhaust air rate per Table C403.2.7.1 and compliance method (DCV, energy recovery, or transfer air that would otherwise be exhausted)"]
[null,"C403.2.7.2","Laboratory exhaust systems ","Refer to Systems Requiring Energy Recovery for requirements"]
[null,"C403.2.13","Variable flow capacity - HVAC system fans","For HVAC fan motors ≥ 7.5 hp, indicate method of variable flow control (VSD, or equivalent control method that reduces design air volume by 50% at 1/3 static design pressure); note exception taken"]
[null,"C403.3.1","DX air handler variable cooling control\n(Under Integrated Economizer)","For DX air handlers with economizer and cooling capacity ≥ 65,000 Btu/h, indicate number of cooling stages provided and method (multiple compressors and / or variable speed compressors); indicate minimum displacement (capacity reduction) as % of full load "]
[null,null,null,"Indicate control method (cooling capacity controlled in response to space temperature, space temperature controlled by modulating supply airflow, or both)"]
[null,"C403.2.11.5","Fan airflow control","For DX air handling units with cooling capacity ≥ 65,000 Btu/h and evaporative and chilled water air handling units with fan ≥ 0.25 hp, indicate whether system is single zone or multiple zone and related control method (cooling capacity controlled in response to space temperature, space temperature is controlled by modulating supply airflow, or both)"]
[null,null,null,"For mechanical cooling systems (includes DX and chilled water coils) that control cooling capacity in response to space temperature - Provide a minimum of two stages of fan control; indicate minimum fan speed is ≤ 66% of full speed drawing ≤ 40% of full speed fan power during periods of low cooling or ventilation only"]
[null,null,null,"For other mechanical cooling systems (includes DX and chilled water coils) that control space temperature by modulating airflow (in lieu of, or in addition to, controlling capacity in response to space temperature) - Provide fan controls for modulating supply airflow; indicate minimum fan speed is ≤ 50% of full speed drawing ≤ 30% of full speed fan power during periods of low cooling or ventilation only; or exception taken"]
[null,"C403.2.4.12","DDC system capabilities","Provide central and zone level DDC controls as required based on system application, capacity or size thresholds and other qualification per Table C403.2.4.12.1"]
[null,null,null,"Identify all DDC system input / output control points; indicate capability for trending and graphical display"]
["Ducting Systems"]
[null,"C403.2.8.1\nC403.2.8.3","Duct construction","Indicate on plans that all ductwork is constructed and sealed per IMC"]
[null,null,null,"For OSA ductwork, also indicate on plans that ductwork meets air leakage requirements per C402.5 and vapor retarder requirements per the IBC"]
[null,"C403.2.8.3","Duct pressure classifications","Identify location of low, medium and high pressure ductwork on plans"]
[null,"C403.2.8.3.3","High pressure duct leakage test","Indicate high pressure duct leakage testing requirements on plans; provide test results to jurisdiction when completed"]
[null,"C403.2.8.1\nC403.2.8.2","Duct insulation","For supply and return ductwork located in unconditioned space or outdoors, indicate R-value of insulation on ductwork on plans; identify climate zone; note exceptions taken"]
[null,null,null,"For supply ductwork located in conditioned space, identify if design supply temperature is < 55°F or > 105°F and indicate R-value of insulation on this ductwork on plans; note exception taken "]
[null,null,null,"For OSA ductwork, shafts and plenums, indicate R-value of insulation on these elements on plans per Table C402.1.3 for steel-framed walls; note exception taken"]
["Piping Systems"]
[null,"C403.2.9","Piping insulation","Indicate design temperature range of fluid conveyed in piping and thickness of insulation (in inches) on hydronic piping plans; or exception taken"]
[null,"C403.2.9.1","Piping insulation exposed to weather","Indicate method of protection of pipe insulation from damage / degradation on hydronic piping plans"]
["Economizers"]
[null,"C403.3","Air economizer required","Identify in equipment schedules on plans or in MECH-EQ forms all cooling systems requiring air economizer controls"]
[null,null,null,"Provide MECH-ECONO form indicating systems utilizing air economizer exceptions, including those with water-side economizer in lieu of air economizer; indicate on plans eligible exception(s) taken and measures to comply with exception(s)"]
[null,"C403.3.1","Integrated economizer operation - air and water","Indicate air and water-side economizers are configured for partial cooling operation even where additional mechanical cooling is required to meet the load"]
[null,"C403.3.2","Economizer heating system impact - air and water","Verify control method of HVAC systems with economizers does not increase building heating energy usage during normal operation"]
[null,"C403.3.3.1","Air economizer capacity","Indicate modulating OSA and return air dampers are configured to provide up to 100% OSA for cooling"]
[null,"C403.3.1\nC403.3.3.2","Integrated air economizer","Verify mechanical cooling controls are interlocked with air economizer controls so the outside air damper remains in 100% open position when mechanical cooling is also required to meet the cooling load, until the leaving air temperature is < 45°F"]
[null,null,null,"For systems with cooling capacity ≥ 65,000 Btu/h, verify that control of economizer dampers is not based only on mixed air temperature; or exception taken"]
[null,"C403.3.3.3","Air economizer high limit controls","Indicate high limit shut-off control method and required high limit per Table C403.3.3.3"]
[null,"C403.3.4.1","Water economizer capacity","For eligible systems where water-side economizer may be provided in lieu of air economizer, indicate system is capable of 100% design cooling capacity at 50°F db / 45°F wb OSA temperatures"]
[null,"C403.3.4.2","Water economizer maximum pressure drop","Indicate pressure drop across precooling coils and heat exchangers in water economizer system do not exceed pressure drop limit"]
[null,"C403.3.1","DX air handling equipment control","For DX air handlers with economizer and cooling capacity ≥ 65,000 Btu/h, refer to HVAC System Controls for requirements"]
[null,"C403.2.4.7","DX equipment economizer fault detection and diagnostics ","For DX air handlers with economizer and cooling capacity ≥ 54,000 Btu/h, provide a fault detection and diagnostics (FDD) system to monitor economizer system operation and report faults"]
["Systems Requiring Energy Recovery"]
[null,"C403.5.1","Energy recovery (ER) - ventilation / exhaust systems","For systems with design OSA > 5,000 cfm, or design supply air cfm and % OSA exceeding the values in Tables C403.5.1(1) or (2), indicate exhaust air ER method; or exception taken with supporting calculations"]
[null,null,null,"For rooms served by multiple systems with aggregate design OSA > 5,000 cfm, or aggregate design supply air cfm and % OSA exceeding the values in Tables C403.5.1(1) or (2), indicate exhaust air ER method; or exception taken with supporting calculations"]
[null,null,null,"Indicate ER rated effectiveness that increases OSA enthalpy by ≥ 50% based on delta between OSA and return air enthalpies at design conditions"]
[null,"C403.2.7.2","Laboratory exhaust systems (energy recovery)","For buildings with total lab exhaust > 5,000 cfm, indicate method of energy recovery used to pre-condition laboratory make-up air; ER effectiveness (min 25°F); or alternative method per exception (VAV exhaust, semi-conditioned makeup, or CERM calculation)"]
[null,"C404.10.4 \n(under C404.11)","Pools and permanent spas exhaust systems \n(energy recovery)","For buildings with pools or spas with water surface area > 200 sf, indicate exhaust air ER method and use of waste heat (preheat ventilation air, pool water or service hot water); or exception taken"]
[null,null,null,"Indicate ER system has the rated effectiveness and is configured to decrease the exhaust air temperature at design conditions by ≥ 36°F "]
[null,"C403.5.2","Energy recovery - \nsteam condensate systems","For buildings with on-site steam heating systems, indicate condensate water ER"]
[null,null,null,"For buildings that use off-site generated steam where condensate is not returned to the source, indicate on-site condensate water ER"]
[null,"C403.5.3","Energy recovery - \ncooler / freezer condensers","For buildings with food service, meat or deli departments that have ≥ 500,000 Btu/h of remote refrigeration capacity for coolers / freezers, indicate condenser ER and use of captured energy (service water heating, space heating, or dehumidification reheating)\n"]
[null,null,null,"For buildings with ≥ 40,000 sf conditioned floor area and with ≥ 1,000,000 Btu/h of remote refrigeration capacity for coolers / freezers, indicate condenser ER and use of captured energy for service water heating and also for space heating, or dehumidification reheating\n"]
[null,"C403.5.4","Energy recovery -\ncondenser systems","For buildings with 24-hour operation and with > 1,500,000 Btu/h of heat rejection capacity and design service hot water load > 250,000 Btu/h, indicate condenser ER to pre-heat service water; or exception taken. Provide calculations showing the amount of recovered heat that is utilized (60% of peak heat rejection load or pre-heat service water to 85°F)."]
["Hydronic System Controls"]
[null,"C403.2.13\nC403.4.2.7","Variable flow control -\nhydronic system pumps","For hydronic system pump motors ≥ 7.5 hp, indicate method of variable flow control (VSD or equivalent method that requires ≥ 30% design wattage at 50% design fluid flow); note exception taken"]
[null,null,null,"Identify whether hydronic coils have DDC controls and associated manner of pump speed control (differential pressure, zone hydronic demand, etc)"]
[null,"C403.2.5\nC403.4.2.4","Hydronic system setback and part load controls","For boilers that provide building heating, indicate controls that provide heating water temperature setback based on outdoor temperature"]
[null,null,null,"For heating and chilled water systems ≥ 300,000 Btu/h, indicate systems are configured to automatically reset supply water temperature based upon demand; or exception taken. \nIf system pump motor hp ≥ 3 hp, also indicate controls automatically reduce flow by ≥ 50%."]
[null,null,null,"For chilled water systems (≥ 300,000 Btu/h, pump motor hp ≥ 3 hp) that serve water-cooled unitary air conditioners, indicate VSD or staged pumps in chilled water system and heat rejection loop that reduce pump flow so that one control valve is nearly wide open, or to maintain a minimum differential pressure; or exception taken"]
[null,"C403.4.2","Boiler sequencing","Indicate automatic controls that sequence operation of multiple boilers"]
[null,"C403.4.6","Hot gas bypass limitation","For cooling equipment with hot gas bypass, provide either multiple step unloading or continuous capacity modulation; indicate bypass capacity per Table C403.4.6"]
[null,"C403.4.2.2","Two-pipe changeover systems","Indicate changeover deadband (min 15°F), heating / cooling mode scheduling and changeover temperature range (limit 30°F)"]
[null,"C403.4.2.6","Chiller / boiler plant pump isolation","Indicate controls are configured to automatically reduce overall plant flow and shut-off flow through individual chillers and boilers when not in use"]
[null,"C403.2.13.1.1\nC403.4.3.1.1\nC403.4.3.1.2","Heat rejection equipment - variable flow control","For cooling towers with fan motors ≥ 7.5 hp, indicate VSD and method to adjust fan speed (adjusted based on leaving fluid temperature or condenser temperature / pressure of heat rejection device)"]
[null,null,null,"For multiple-cell heat rejection equipment with VSD, indicate controls that ramp all fans in unison"]
[null,"C403.4.3.3","Heat rejection equipment - cooling tower flow turndown","Indicate open-circuit cooling towers with multiple pumps or VSD control are designed so all cells can be run in parallel"]
[null,"C403.4.2.3.1","Water loop heat pump - deadband","Indicate capability of central equipment to provide minimum 20°F water supply temperature deadband between heat rejection and heat addition modes; or exception taken"]
[null,"C403.4.2.3.2.1","Water loop heat pump - heat rejection equipment, Zone 4","Indicate type of cooling tower (open- or closed-circuit) in equipment schedule; indicate method used to limit system heat loss when heat rejection is not needed"]
[null,"C403.4.2.3.2.2","Water loop heat pump - heat rejection equipment, Zone 5","For open- or closed-circuit cooling towers, provide a heat exchanger that separates the cooling tower and heat pump loop"]
[null,"C403.4.2.3.3","Water loop heat pump - isolation valves","For hydronic heat pump systems with total system power > 10 hp, indicate 2-way isolation valves on each heat pump and variable flow system control "]
["Dedicated Outdoor Air Systems (DOAS) - Optional through 6/30/16, Prescriptive 7/1/2016   "]
[null,"C403.6\nC403.6.3","Dedicated outdoor air systems ","For buildings with office, retail, education, library and fire station spaces, identify these spaces on plans; indicate that ventilation air in each occupied space is provided via a DOAS system; or document compliance with C403.6.3 Impracticality; or exception taken (buildings complying with C402.4.1.4 or C406.6 may not utilize exceptions) "]
[null,"C403.6.1","Energy recovery ventilation with DOAS","For all DOAS systems, indicate exhaust air ER method; or exception taken with supporting calculations. Indicate ER rated effectiveness that increases OSA enthalpy by ≥ 50% based on delta between OSA and return air enthalpies at design conditions. "]
[null,"C403.6.2","Heating / cooling system \ncontrols with DOAS","Indicate equipment associated with the delivery of zone level heating and cooling (fans, hydronic pumps, primary air dampers, etc) are configured to shut off, and central equipment is configured to turn down, when there is no call for heating or cooling in the zone they serve"]
[null,null,null,"If applying Exception to heating / cooling fans used for air mixing in the space during deadband periods, include fan watts per cfm in equipment schedule"]
[null,"C402.4.1.4\nC403.6","Increased prescriptive maximum vertical fenestration area with DOAS ","Indicate that all occupied, conditioned spaces are served by a DOAS per C403.6"]
["Additional Efficiency Package Option, Dedicated Outside Air Systems (DOAS)"]
[null,"C406.6","Building provided with DOAS","To comply with additional efficiency package option, indicate that 90% or more of all occupied, conditioned spaces are served by a DOAS per C403.6"]
["Multiple Zone Air Systems"]
[null,"C403.4.4","Air systems serving multiple zones","Identify supply air systems serving multiple zones and the zones they serve on plans; indicate whether system is VAV and method of primary air control; or provide supporting documentation for applied exception to VAV "]
[null,"C403.4.4","VAV systems serving multiple zones","Provide equipment schedules on plans or MECH-EQ form that list all VAV air terminals and types"]
[null,null,null,"For each air terminal include: maximum airflow rates for primary supply air during zone peak heating and zone peak cooling; maximum airflow during reheating, recooling or mixing; minimum airflow rate to maintain required ventilation, and the basis for these values; if IMC or ASHRAE 62.1 multiple zone equation is basis for minimum flow rates, provide calculation on plans"]
[null,"C403.4.4.1","Single duct VAV terminal units","Indicate single duct terminal units are configured to reduce primary supply air before reheating or recooling"]
[null,"C403.4.4.2","Dual duct systems - terminal units","For systems with separate warm air and cool air ducts, indicate terminal units are configured to reduce the flow from one duct to minimum before mixing with air from the other duct"]
[null,"C403.4.1.1\nC403.4.1.2","VAV system static \npressure sensors - \nsensors and DDC set points","Indicate locations of duct static pressure sensors on plans; include at least one sensor per major duct branch; verify controller setpoint pressure at each sensor is ≤ 1.2 inch w.g."]
[null,null,null,"For systems with zone level DDC, indicate controls are configured to monitor zone damper positions and reset static pressure setpoint based on the zone requiring most pressure; include control logic that automatically detects and generates an alarm if any zone excessively drives reset logic, and allows building operators to exclude zones from reset logic"]
[null,"C403.4.4.3","Multiple-zone VAV system ventilation optimization controls","For systems with zone level DDC controls, indicate controls are configured to automatically reduce outdoor airflow in response to changes in system ventilation efficiency; or exception taken"]
[null,"C403.4.4.4","VAV system supply air reset","Indicate controls automatically reset supply air temperature in response to building loads or outdoor air temperature; or exception taken"]
["Multiple Zone HVAC Systems, High Efficiency VAV - Required for systems utilizing C403.6 DOAS Exception 2, must comply with all 16 provisions"]
[null,"C403.7, \nItem 1","Air economizer","Indicate system is configured for 100% air economizer operation and complies with all related economizer requirements per C403.3 (without economizer exceptions)"]
[null,"C403.7, \nItem 2","Direct digital controls (DDC) ","Provide DDC controls for all components of system; identify all DDC system input / output control points; indicate capability for trending and graphical display"]
[null,"C403.7, \nItem 3","Outdoor airflow measurement and reduction","For systems with minimum OSA > 2,500 cfm, indicate outdoor airflow monitoring station that measures OSA intake under all load conditions; indicate control sequence that increases or reduces system OSA cfm based on VAV terminal feedback of ventilation efficiency (per C403.4.4.3 without exceptions) or DCV (per C403.2.6.2)"]
[null,"C403.7, \nItem 4","Supply airflow measurement","For systems with minimum OSA > 2,500 cfm, indicate supply airflow monitoring station capable of measuring supply air delivered to VAV terminals under all load conditions"]
[null,"C403.7, \nItem 5","Zone isolation and maximum area served","Verify maximum area served by a single HEVAV system is ≤ 50,000 sf, or one entire floor, whichever is greater; in addition if a system serves > 25,000 sf, that includes areas that are expected to be occupied non-simultaneously, indicate zone isolation controls per C403.2.4.4"]
[null,"C403.7, \nItem 6","Interior / exterior zone design supply air temperature ","Verify that VAV terminals serving interior cooling driven loads are sized per design supply air temperature that is 5°F higher than VAV terminals serving exterior zones "]
[null,"C403.7, \nItem 7","Maximum air terminal inlet velocity","Identify air terminals with minimum primary airflow setpoints > 50% of maximum setpoint in equipment schedule or MECH-EQ form; indicate air terminal inlet velocity does not exceed 900 fpm"]
[null,"C403.7, \nItem 8","Sequence of operation","Indicate DDC system sequences of operation are designed and configured per ASHRAE GPC 36"]
[null,"C403.7, \nItem 9","Maximum allowable system brake horsepower","Verify fan system bhp is ≤ 90% of the bhp limit per Option 2 equation in Table C403.2.11.1(1), provide MECH-FANSYS form for each system"]
[null,"C403.7, \nItem 10","Fan-powered terminal unit motor and control","Indicate all series and parallel terminal fans have electronically commutated motors; indicate DDC control system is configured to vary air terminal fan speed as a function of the load; indicate fan speed during periods of low heating, low cooling, or ventilation only is ≤ 66% of peak design air flow or provide supporting documentation for applied exception "]
[null,"C403.7, \nItem 11","Application of single duct and fan-powered terminal units","Indicate VAV terminal types on plans; verify fan-powered terminal units only serve perimeter zones with envelope loads; verify all other zones are served by single duct terminal units"]
[null,"C403.7, \nItem 12","Fan-powered terminal unit primary air reset","Indicate DDC controls are configured to automatically reset the primary supply air cfm setpoint of all fan-powered terminal units to the minimum required to maintain ventilation during occupied heating or deadband, based upon the VAV air handling unit OSA ventilation fraction "]
[null,"C403.7, \nItem 13","High occupancy space controls","For spaces > 150 sf with occupant density ≥ 25 people / 1000 sf, indicate space is served by a dedicated terminal unit with DCV control that resets terminal unit ventilation setpoint; also indicate occupancy sensor control that automatically reduces minimum ventilation to zero and sets back room heating and cooling setpoints by ≥ 5°F"]
[null,"C403.7, \nItem 14","Dedicated HVAC systems","For server, electronic equipment, telecom or similar spaces with cooling loads > 5 W/sf, indicate spaces are served by independent HVAC systems that are separate from HPVAV systems serving rest of building; indicate dedicated HVAC systems have air economizer controls or energy recovery per C403.3 Exception 9"]
[null,"C403.7, \nItem 15","Central plant efficiency","Indicate whether systems are served by a high efficiency heating water plant, or a high efficiency chilled water plant"]
[null,null,null,"If complying via high efficiency heating water plant: Indicate all VAV terminals have hydronic heating coils served by heating water system with either gas-fired boiler(s) with thermal efficiency ≥ 90%, air-to-water heat pumps, or heat recovery chillers"]
[null,null,null,"If complying via high efficiency chilled water plant: Indicate all VAV air handlers have cooling coils served by chillers with rated IPLV efficiency that exceeds WSEC listed IPLV by at least 25% per Table C403.2.3(7) (note water-cooled IPLV is max, all others are min); indicate smallest chiller or compressor in plant is ≤ 20% of total plant capacity, or provide thermal storage sized for ≤ 20% of total plant capacity"]
[null,"C403.7, \nItem 16","Fault detection and diagnostics","Indicate DDC system includes a fault detection and diagnostics (FDD) system configured to monitor operation and provide fault reporting of required parameters for all VAV air handlers and VAV air terminal units in the HPVAV system"]
["HVAC Equipment Energy Use Metering"]
[null,"C409.3.1","HVAC equipment energy use metering","For new buildings > 50,000 sf and building additions > 25,000 sf, verify energy use metering of all equipment used to provide space heating and cooling, dehumidification and ventilation will be provided per C409; indicate equipment eligible for exception"]
["Documentation and System Specific Requirement To Support Commissioning"]
[null,"C408.2","Scope of mechanical systems commissioning ","Indicate that all mechanical systems, equipment, and controls for which the WSEC requires control functions and  / or configuration to perform specific functions are required to be commissioned;"]
[null,null,null,"For buildings with ≥ 240,000 Btu/h total output cooling capacity or ≥ 300,000 Btu/h total output heating capacity, indicate that all mechanical systems regardless of individual capacity are required to be commissioned; or provide building heating / cooling capacity calculation demonstrating eligibility for exception"]
[null,"C403.2.10\nC408.1.1\nC408.1.2\nC408.1.4.2\nC103.6","Commissioning requirements in construction documents","Indicate in plans and specifications that Cx per C408 is required for all applicable mechanical  systems;"]
[null,null,null,"Include general summary with at a minimum of Items 1 thru 4 of the Cx plan per C408.1.2 including: narrative description of activities, responsibilities of the Cx team, schedule of activities including verification of project close out documentation per C103.6, and conflict of interest plan (if required);"]
[null,null,null,"Include in general summary that a Cx project report or Compliance Checklist (Figure C408.1.4.2) shall be completed by the Certified Cx Professional and provided to the owner prior to the final mechanical inspection."]
[null,"C408.2.2","Air system and hydronic system balancing","Indicate in plans that air and fluid flow rates shall be tested and balanced within the tolerances defined in the specifications; indicate systems shall be balanced in a manner to first minimize throttling losses, then adjusted to meet design flow conditions"]
[null,"C408.2.2.1","Air system balancing devices","Indicate devices that provide the capability to balance all supply air outlets, zone terminals and air handling equipment requiring system balancing"]
[null,"C408.2.2.2","Hydronic system balancing devices","Indicate devices that provide the capability to isolate, balance and measure flow across all hydronic equipment requiring system balancing including heating and cooling coils and pumps"]
[null,"C408.2.3","Functional performance testing criteria","Identify in plans and specifications the intended operation of all equipment and controls during all modes of operation, including interfacing between new and existing-to-remain systems"]
["Project Close Out Documentation"]
[null,"C103.6","Documentation and project close out submittal requirements","Indicate in plans that project close out documentation and training of building operations personnel is required for all mechanical components, equipment and systems governed by this code; indicate close out documentation shall include: record documents, O&M manuals, applicable WSEC compliance forms and calculations"]
[]
[]
[]
[]
[]
[]
[]
[]
[]
[]
["Yes"]
["No"]
["NA"]

{"sheet":"MECH-ECONO org","index":4,"n_rows":83,"n_cols":4,"rows_kept":83,"cut":false,"hidden":true,"merged":[]}
["Economizer Exception Summary",null,null,"MECH-ECONO"]
[{"$f":"#REF!","v":{"$error":"#REF!"}}]
["Project Info","Project Address:",{"$f":"IF('MECH-SUM'!D3=\"1 - This address line will copy onto other forms\",\"Fill this line out on MECH-SUM\",IF('MECH-SUM'!D3=0,\"\",'MECH-SUM'!D3))","v":"1 - This title will copy onto other forms"},{"$f":"'MECH-SUM'!H3","v":"2015-01-01"}]
[null,null,{"$f":"IF('MECH-SUM'!D4=\"1 - This address line will copy onto other forms\",\"Fill this line out on MECH-SUM\",IF('MECH-SUM'!D4=0,\"\",'MECH-SUM'!D4))","v":""},"For Building Dept. Use"]
[null,null,{"$f":"IF('MECH-SUM'!D5=\"1 - This address line will copy onto other forms\",\"Fill this line out on MECH-SUM\",IF('MECH-SUM'!D5=0,\"\",'MECH-SUM'!D5))","v":""}]
[null,"Applicant Name:",{"$f":"IF('MECH-SUM'!D6=\"1 - This address line will copy onto other forms\",\"Fill this line out on MECH-SUM\",IF('MECH-SUM'!D6=0,\"\",'MECH-SUM'!D6))","v":""}]
[null,"Applicant Address:",{"$f":"IF('MECH-SUM'!D7=\"1 - This address line will copy onto other forms\",\"Fill this line out on MECH-SUM\",IF('MECH-SUM'!D7=0,\"\",'MECH-SUM'!D7))","v":""}]
[null,"Applicant Phone:",{"$f":"IF('MECH-SUM'!D8=\"1 - This address line will copy onto other forms\",\"Fill this line out on MECH-SUM\",IF('MECH-SUM'!D8=0,\"\",'MECH-SUM'!D8))","v":""}]
[]
[null,null,null,"System IDs:"]
[]
[null,null,"Total Claimed Exempt Capacity:"]
[null,null,"Total building air economizer capacity ( if claimed > 72 kBtu/h) :"]
[]
[null,null,null,"System IDs:"]
[]
[]
[null,null,null,"System IDs:"]
[null,null,null,"Document under CS Exp4"]
[]
[null,null,null,"System IDs:"]
[]
[]
[null,null,null,"System IDs:"]
[null,null,null,"Document under \nCS Exp5"]
[]
[null,null,null,"System IDs:"]
[]
[null,null,"Total building water economizer capacity (all systems):"]
[]
[null,null,null,"System IDs:"]
[]
[]
[null,null,null,"System IDs:"]
[]
[null,null,"Total Claimed Exempt Capacity:"]
[null,null,"Total building air economizer capacity ( if claimed > 480 kBtu/h) :"]
[]
[null,null,null,"System IDs:"]
[]
[]
[null,null,null,"System IDs:"]
[]
[null,null,"Total Claimed Exempt Capacity:"]
[null,null,"Total building air economizer capacity ( if claimed > 240 kBtu/h):"]
[]
[null,null,null,"System IDs:"]
[]
[]
[null,null,null,"System IDs \nw/ Unit Type & Option:"]
[]
[]
[]
[]
["Simple"]
["Complex"]
[]
[]
["Low energy"]
["Semi-heated"]
[]
[]
["Yes"]
["No"]
[]
["Yes"]
["SS Exp1"]
["SS Exp2"]
["SS Exp3"]
["CS Exp1"]
["CS Exp2"]
["CS Exp3"]
["CS Exp4"]
["CS Exp5a"]
["CS Exp5b"]
["CS Exp5c"]
["CS Exp6"]
["Other"]
[]
[]
["Yes"]
["NA"]
["C408.2 exception"]

{"sheet":"MECH-CHK (2)","index":5,"n_rows":121,"n_cols":6,"rows_kept":121,"cut":false,"hidden":true,"merged":[[106,0,107,0],[106,1,107,1],[106,2,107,2],[108,0,109,0],[108,1,109,1],[108,2,109,2],[100,0,102,0],[100,1,102,1],[100,2,102,2],[104,0,105,0],[104,1,105,1],[104,2,105,2],[22,0,23,0],[22,1,23,1],[22,2,23,2],[2,2,2,3],[3,0,3,3],[10,0,11,0],[10,1,11,1],[10,2,11,2],[12,0,13,0],[12,1,13,1],[12,2,13,2],[45,0,46,0],[45,1,46,1],[45,2,46,2],[40,0,42,0],[40,1,42,1],[40,2,42,2],[57,0,59,0],[57,1,59,1],[57,2,59,2],[64,0,65,0],[64,1,65,1],[64,2,65,2],[68,0,69,0],[68,1,69,1],[68,2,69,2],[70,0,72,0],[70,1,72,1],[70,2,72,2],[73,0,74,0],[73,1,74,1],[73,2,74,2],[76,0,77,0],[76,1,77,1],[76,2,77,2],[92,0,93,0],[92,1,93,1],[92,2,93,2],[80,0,82,0],[80,1,82,1],[80,2,82,2],[87,0,88,0],[87,1,88,1],[87,2,88,2],[112,0,113,0],[112,1,113,1],[112,2,113,2],[114,0,116,0],[114,1,116,1],[114,2,116,2]]}
["Service Water Heating Permit Plans Checklist ",null,null,null,null,"SWH-CHK"]
[{"$f":"ReadMe!A2","v":"2015 Washington State Energy Code Compliance Forms for Commercial Buildings including R2 & R3 over 3 stories and all R1 "},null,null,null,null,{"$f":"ReadMe!B3","v":"Revised January 2017"}]
["Project Title:",null,{"$f":"IF('MECH-SUM'!D3=\"1 - This title will copy onto other forms\",\"Fill this line out on MECH-SUM\",'MECH-SUM'!D3)","v":"Fill this line out on MECH-SUM"},null,"Date",{"$f":"'MECH-SUM'!H3","v":"2015-01-01"}]
["The following information is necessary to check a permit application for compliance with the mechanical systems and equipment requirements of the Washington State Energy Code, Commercial Provisions."]
["Applicable (yes,no,na)","Code Section","Code Provision","Information Required - Must be in permit documents","Location in Documents","Building Department Notes"]
["Equipment - Sizing, Performance and Type"]
[null,"C403.1","Exempt process equipment","Identify equipment to be used in manufacturing, industrial or commercial processes that do not provide space conditioning; identify provisions applicable to this equipment per C403.1 exception"]
[null,"C403.2.1","Load calculations","Provide load calculations performed per ASHRAE Std 183 or equivalent, using design parameters per C302 and Appendix C; include load adjustments to account for energy recovery"]
[null,"C403.2.2","Equipment and system sizing","Indicate that output capacities of heating and cooling equipment and systems are no greater than the smallest available equipment size that exceeds the calculated loads; note exceptions taken"]
[null,"C403.2.3\nC403.2.3.2\nC403.2.13.1","HVAC equipment performance requirements (efficiency)","Provide equipment schedules on plans or complete MECH-EQ forms indicating type, capacity, rated and WSEC minimum efficiencies for all heating and cooling equipment; include supply and OSA cfms and operating hours for all air systems; identify heating and cooling equipment that does not have a corresponding WSEC minimum efficiency (manufacturer rated)"]
[null,"C405.8\nC403.2.14","Electric motor efficiency","List all motors ≥ 1/12 hp (that are not integral to a rated piece of equipment) in the mechanical or electrical equipment schedules on plans; indicate hp, rpm, number of poles and rated efficiency, or exception applied"]
[null,null,null,"For fractional hp motors (1/12 - 1 hp), indicate whether they are an electronically commutated motor, have rated efficiency of at least 70%, or exception taken"]
[null,"C403.2.11.1","Fan power limitation","For all HVAC fan systems that provide heating and / or cooling, provide system total nameplate hp in MECH-FANSYS-SUM form"]
[null,null,null,"For all applicable HVAC systems with total fan motor hp > 5hp, verify fan system motor hp or bhp complies with fan power limits per equations in Table C403.2.11.1(1), provide MECH-FANSYS form for each system"]
[null,"C403.2.11.2","Motor nameplate hp","For all applicable HVAC systems with total fan motor hp > 5hp, indicate fan motors specified are the smallest available motor hp size greater than fan bhp, note exceptions taken"]
[null,"C403.2.11.3","Fan efficiency","For all applicable HVAC systems with total fan motor hp > 5hp, identify in equipment schedule all fans required to comply with fan efficiency grade and indicate rated FEG is ≥ 67, or exception taken; indicate these fans are sized so total efficiency is within 15% of the fan maximum total efficiency"]
[null,"C403.2.11.4","Group R occupancy exhaust fan efficacy","For all exhaust fans < 400 cfm in Group R occupancies, indicate in equipment schedule the fan flow rate and efficacy (cfm/watt), or exception taken; refer to Table C403.2.11.4 (CE-57)"]
[null,"C403.2.13","Variable flow capacity - \nfans","For fan motors ≥ 7.5 hp, indicate method of variable flow control (VSD or equivalent method) in equipment schedule, or exception taken; for equivalent method for an HVAC system refer to HVAC System Controls for additional requirements"]
[null,"C403.2.3","Maximum air cooled chiller capacity","For chilled water plants and buildings with > 500 tons of cooling capacity, indicate air-cooled chiller capacity is ≤ 100 tons, or exception taken"]
[null,"C403.4","Large capacity cooling systems","For buildings with ≥ 300 tons of cooling capacity, indicate method of multi-stage or variable capacity control (VSD, multiple staged compressors, or max capacity of any single unit < 66% of the total)"]
[null,"C403.2.3.1","Non-standard water-cooled centrifugal chillers ","For water-cooled centrifugal chillers not designed for operation at standard conditions, provide calculations documenting maximum full load and part load rated equipment performance requirements"]
[null,"C403.2.13.1\nC403.4.3.2","Centrifugal fan open-circuit cooling towers","For open-circuit centrifugal fan cooling towers with ≥ 1,100 gpm capacity, indicate cooling towers comply with efficiency requirements for axial fan open circuit cooling towers"]
[null,"C403.4.2\nC403.4.2.5","Large capacity boiler systems","For single boilers with > 500,000 Btu/h capacity, indicate multi-stage or modulating burner "]
[null,null,null,"For boiler system (single or mulltiple) with > 1,000,000 Btu/h capacity, indicate turndown ratio per Table C403.4.2.5 and method (multiple single input boilers, modulating boilers, or combination) "]
[null,"C403.2.13","Variable flow capacity - \npumps","For pump motors ≥ 7.5 hp, indicate method of variable flow control (VSD or equivalent method) in equipment schedule, or exception taken; for equivalent method for a hydronic system refer to Hydronic System Controls for additional requirements"]
[null,"C403.2.3","Gas and oil-fired forced air furnace and unit heaters","For forced air furnaces with capacity ≥ 225,000 Btu/h and all unit heaters, indicate in equipment schedule intermittent ignition or IID, flue or draft damper, and rated jacket loss"]
[null,"C403.2.4.8","Combustion heating equipment","For combustion heating equipment with output capacity > 225,000 Btu/h, indicate modulating or staged combustion control "]
[null,"C403.2.3.3","Packaged electric heating / cooling equipment","Verify all packaged electric equipment with > 6,000 Btu/h cooling capacity and any amount of heating is a heat pump; include in equipment schedules"]
[null,"C403.2.12","Heating outside a building","Indicate systems providing heating in non-enclosed outdoor occupied spaces are radiant systems; refer to HVAC System Controls for additional requirements "]
[null,"C403.2.7.1","Kitchen exhaust hoods","Indicate on plans the type, duty and exhaust air rate of each kitchen hood, refer to HVAC System Controls for additional requirements"]
[null,"C403.2.4.3","Outdoor supply air, exhaust and relief dampers","Indicate locations of OSA intake, and exhaust and relief outlet dampers on plans; indicate whether dampers are Class 1 motorized, or gravity and exception taken (include leakage rating, cfm/sf); refer to HVAC System Controls for additional requirements for OSA dampers "]
[null,"C403.2.4.3","Return air dampers","Indicate locations of return air dampers that are integral to economizer operation; verify dampers are motorized; indicate whether dampers are Class 1, or within packaged equipment eligible for leakage rating exception (include leakage rating, cfm/sf)"]
[null,"C403.2.4.3","Stairway and shaft vent dampers","Indicate location of stairway and shaft vent dampers on plans; verify dampers are Class 1 motorized; refer to HVAC System Controls for additional requirements"]
[null,"C403.2.4.4","Zone isolation dampers","For systems serving areas > 25,000 sf or spanning more than one floor, that include areas that are expected to be occupied non-simultaneously; identify isolation zone areas on plans and locations of associated isolation dampers in HVAC distribution system; refer to HVAC System Controls for additional requirements"]
[null,"C403.2.3.4","Humidification","For cooling systems with humidification equipment that are also required to have air economizer, indicate humidifier is adiabatic (direct evaporative or fog atomization), or exception taken "]
[null,"Additional Efficiency Package Option, More Efficient HVAC Equipment & Fan Performance - \nMust comply with all 3 provisions to be eligible"]
[null,"C406.2.1\nC403.2.3","HVAC system selection","To comply with additional efficiency package option, calculate the percentage of heating and cooling equipment in the project (based on output capacity) that do not have a corresponding WSEC listed efficiency; shall be less than 10% to comply"]
[null,"C406.2.2\nC403.2.3","Minimum equipment efficiency ","To comply with additional efficiency package option, indicate that all listed heating and cooling equipment have a rated efficiency that exceeds WSEC listed efficiency by at least 15%"]
[null,"C406.2.3\nC403.2.11.3","Minimum fan efficiency ","To comply with additional efficiency package option, indicate rated FEG of stand alone fans is ≥ 71; indicate these fans are sized so the fan efficiency at design conditions is within 10% of the maximum total or static efficiency"]
["HVAC System Control"]
[null,"C403.2.4.1","Thermostatic controls\n(thermostats and humidistats)","Indicate locations of thermostatic and humidity control devices and the zones they serve on plans, including perimeter system zones"]
[null,null,null,"Where adjacent (neighboring) zones are controlled by separate thermostats (including perimeter systems used to offset heat gain or loss), and are connected by permanent openings > 10% of either zone sf area, indicate controls configured to prevent adjacent zones from operating in conflicting modes (one in heat, other in cool); applies to adjacent perimeter zones, adjacent nonperimeter zones, and adjacent perimeter and nonperimeter zones"]
[null,null,null,"If applying Exception 2 to nonperimeter zones adjacent to perimeter zones, indicate that setpoints and deadband settings in these zones are coordinated so cooling in a nonperimeter zone does not occur until the temperature in that zone is 5°F higher than the adjacent perimeter zone temperature in heating"]
[null,"C403.2.4.1.1","Heat pump supplementary heat","Indicate staged heating operation with compression as the first stage of heating and supplemental heating controlled with outdoor lock-out temperature set to 40°F or less"]
[null,"C403.2.4.1.2","Deadband","Indicate zone thermostatic controls configured with 5°F minimum deadband for systems that control both heating and cooling"]
[null,"C403.2.4.1.3","Setpoint overlap restriction (thermostats)","If separate heating and cooling systems with separate thermostatic control devices are used to serve a zone, indicate locations of both thermostatic control devices and the zone they serve on plans"]
[null,null,null,"Indicate a limit switch, mechanical stop or DDC control with programming to prevent simultaneous heating and cooling"]
[null,"C403.2.4.2\n C403.2.4.2.1\nC403.2.4.2.2","Automatic setback and shutdown","Indicate zone thermostatic controls configured with required automatic setback and manual override functions, setback temperatures, and control method (automatic time clock or programmable controls); note exceptions taken"]
[null,"C403.2.4.2.3","Automatic (optimum) start ","Indicate system controls that adjust equipment start time required to bring each area served up to design temperature just prior to scheduled occupancy"]
[null,"C403.2.4.3","Outdoor supply air dampers","Indicate automatic controls configured to close OSA damper during unoccupied equipment operation; not including economizer cooling, night flush or IMC required OSA / exhaust"]
[null,"C403.2.4.3","Stairway and shaft vent dampers","Indicate method of activation of stairway and shaft vent dampers (fire alarm or interruption of power)"]
[null,"C403.2.4.4","Zone isolation controls","For systems serving areas > 25,000 sf or spanning more than one floor, that include areas that are expected to be occupied non-simultaneously; indicate controls that allow for independent space conditioning of isolation zones; or exception taken"]
[null,"C403.2.12","Heating outside a building","Indicate occupancy sensing or timer switch controls configured to automatically shut off heating system when area served is unoccupied"]
[null,"C403.2.4.5","Snow melt systems","Indicate automatic controls configured to shut off system when pavement temperature exceeds 50°F and no precipitation is falling, and when outdoor air temperature exceeds 40°F "]
[null,"C403.2.4.6","Freeze protection system controls","Indicate automatic controls to shut off system when outdoor temperature exceeds 40°F, or conditions protect fluid from freezing"]
[null,"C403.2.4.9","Group R1 hotel / motel guest rooms","For hotels and motels with over 50 guest rooms, indicate automatic controls serving guest rooms that are capable of setback (heating) and set-up (cooling) of temperature setpoint by at least 5°F; indicate control method - activated by room entry or occupancy sensor"]
[null,"C403.2.4.10\nC403.2.4.11","Group R2 / R3 dwelling units, Group R2 sleeping units","For primary space conditioning system, indicate 5-2 programmable thermostats capable of two setback periods per day; for all thermostats indicate purpose (heating only, cooling only, or both), required temperature range and at minimum a 10°F deadband; or exception taken"]
[null,"C403.2.6\nC403.2.11.4","Ventilation","Indicate method of ventilation air delivery (natural or mechanical) for each zone"]
[null,null,null,"If mechanically delivered, indicate that systems are configured to provide not more than 150% of, but at least the minimum required volume of outdoor air to each zone per IMC, ASHRAE 62.1 or other applicable code (WAC, OSHA, etc); or exception taken "]
[null,null,null,"If delivered via natural ventilation, identify required elements per IMC including minimum openable area to the outdoors or qualifying adjoining spaces "]
[null,"C403.2.6.2","Demand controlled ventilation","Identify spaces > 500 sf with occupant load > 25 people/1,000 sf per IMC; for each space indicate whether it is served by an HVAC system with total design OSA > 3,000 cfm, and / or  the system has airside economizer or automatic modulating OSA damper; indicate OSA controls are configured to provide demand controlled ventilation or provide supporting documentation for applied exception"]
[null,"C403.2.6.3","Occupancy sensors","For gyms, classrooms, auditoriums and conference rooms > 500 sf, indicate occupancy-based OSA control when space is unoccupied and method (closes OSA damper or shuts-off equipment); or alternate means provided to automatically reduce OSA when space is partially occupied"]
[null,"C403.2.6.4 \nC403.2.6.4.1","Enclosed loading dock ventilation","For enclosed loading docks, indicate ventilation / exhaust system method of activation (gas detection system for CO and NO2, or occupancy sensors), and control method (staged or modulating)"]
[null,"C403.2.6.4 \nC403.2.6.4.2","Enclosed parking garage ventilation","For enclosed parking garages, indicate ventilation / exhaust system activated by gas detection system for CO and NO2, and control method (staged or modulating); or exception taken"]
[null,"C403.2.7.1","Kitchen exhaust hoods","Provide calculations that show a balanced accounting of total kitchen exhaust (include all hoods) with % of: supply air, transfer air from adjacent spaces, and make-up air; if applicable, indicate that direct make-up air to each hood does not exceed 10% of hood exhaust"]
[null,null,null,"For kitchens with total hood exhaust exceeding 2,000 cfm, indicate exhaust air rate per Table C403.2.7.1 and compliance method (DCV, energy recovery, or transfer air that would otherwise be exhausted)"]
[null,"C403.2.7.2","Laboratory exhaust systems ","Refer to Systems Requiring Energy Recovery for requirements"]
[null,"C403.2.13","Variable flow capacity - HVAC system fans","For HVAC fan motors ≥ 7.5 hp, indicate method of variable flow control (VSD, or equivalent control method that reduces design air volume by 50% at 1/3 static design pressure); note exception taken"]
[null,"C403.3.1","DX air handler variable cooling control\n(Under Integrated Economizer)","For DX air handlers with economizer and cooling capacity ≥ 65,000 Btu/h, indicate number of cooling stages provided and method (multiple compressors and / or variable speed compressors); indicate minimum displacement (capacity reduction) as % of full load "]
[null,null,null,"Indicate control method (cooling capacity controlled in response to space temperature, space temperature controlled by modulating supply airflow, or both)"]
[null,"C403.2.11.5","Fan airflow control","For DX air handling units with cooling capacity ≥ 65,000 Btu/h and evaporative and chilled water air handling units with fan ≥ 0.25 hp, indicate whether system is single zone or multiple zone and related control method (cooling capacity controlled in response to space temperature, space temperature is controlled by modulating supply airflow, or both)"]
[null,null,null,"For mechanical cooling systems (includes DX and chilled water coils) that control cooling capacity in response to space temperature - Provide a minimum of two stages of fan control; indicate minimum fan speed is ≤ 66% of full speed drawing ≤ 40% of full speed fan power during periods of low cooling or ventilation only"]
[null,null,null,"For other mechanical cooling systems (includes DX and chilled water coils) that control space temperature by modulating airflow (in lieu of, or in addition to, controlling capacity in response to space temperature) - Provide fan controls for modulating supply airflow; indicate minimum fan speed is ≤ 50% of full speed drawing ≤ 30% of full speed fan power during periods of low cooling or ventilation only; or exception taken"]
[null,"C403.2.4.12","DDC system capabilities","Provide central and zone level DDC controls as required based on system application, capacity or size thresholds and other qualification per Table C403.2.4.12.1"]
[null,null,null,"Identify all DDC system input / output control points; indicate capability for trending and graphical display"]
["Ducting Systems"]
[null,"C403.2.8.1\nC403.2.8.3","Duct construction","Indicate on plans that all ductwork is constructed and sealed per IMC"]
[null,null,null,"For OSA ductwork, also indicate on plans that ductwork meets air leakage requirements per C402.5 and vapor retarder requirements per the IBC"]
[null,"C403.2.8.3","Duct pressure classifications","Identify location of low, medium and high pressure ductwork on plans"]
[null,"C403.2.8.3.3","High pressure duct leakage test","Indicate high pressure duct leakage testing requirements on plans; provide test results to jurisdiction when completed"]
[null,"C403.2.8.1\nC403.2.8.2","Duct insulation","For supply and return ductwork located in unconditioned space or outdoors, indicate R-value of insulation on ductwork on plans; identify climate zone; note exceptions taken"]
[null,null,null,"For supply ductwork located in conditioned space, identify if design supply temperature is < 55°F or > 105°F and indicate R-value of insulation on this ductwork on plans; note exception taken "]
[null,null,null,"For OSA ductwork, shafts and plenums, indicate R-value of insulation on these elements on plans per Table C402.1.3 for steel-framed walls; note exception taken"]
["Piping Systems"]
[null,"C403.2.9","Piping insulation","Indicate design temperature range of fluid conveyed in piping and thickness of insulation (in inches) on hydronic piping plans; or exception taken"]
[null,"C403.2.9.1","Piping insulation exposed to weather","Indicate method of protection of pipe insulation from damage / degredation on hydronic piping plans"]
["Economizers"]
[null,"C403.3","Air economizer required","Identify in equipment schedules on plans or in MECH-EQ forms all cooling systems requiring air economizer controls"]
[null,null,null,"Provide MECH-ECONO form indicating systems utilizing air economizer exceptions, including those with water-side economizer in lieu of air economizer; indicate on plans eligible exception(s) taken and measures to comply with exception(s)"]
[null,"C403.3.1","Integrated economizer operation - air and water","Indicate air and water-side economizers are configured for partial cooling operation even where additional mechanical cooling is required to meet the load"]
[null,"C403.3.2","Economizer heating system impact - air and water","Verify control method of HVAC systems with economizers does not increase building heating energy usage during normal operation"]
[null,"C403.3.3.1","Air economizer capacity","Indicate modulating OSA and return air dampers are configured to provide up to 100% OSA for cooling"]
[null,"C403.3.1\nC403.3.3.2","Integrated air economizer","Verify mechanical cooling controls are interlocked with air economizer controls so the outside air damper remains in 100% open position when mechanical cooling is also required to meet the cooling load, until the leaving air temperature is < 45°F"]
[null,null,null,"For systems with cooling capacity ≥ 65,000 Btu/h, verify that control of economizer dampers is not based only on mixed air temperature; or exception taken"]
[null,"C403.3.3.3","Air economizer high limit controls","Indicate high limit shut-off control method and required high limit per Table C403.3.3.3"]
[null,"C403.3.4.1","Water economizer capacity","For eligible systems where water-side economizer may be provided in lieu of air economizer, indicate system is capable of 100% design cooling capacity at 50°F db / 45°F wb OSA temperatures"]
[null,"C403.3.4.2","Water economizer maximum pressure drop","Indicate pressure drop across precooling coils and heat exchangers in water economizer system do not exceed pressure drop limit"]
[null,"C403.3.1","DX air handling equipment control","For DX air handlers with economizer and cooling capacity ≥ 65,000 Btu/h, refer to HVAC System Controls for requirements"]
[null,"C403.2.4.7","DX equipment economizer fault detection and diagnostics ","For DX air handlers with economizer and cooling capacity ≥ 54,000 Btu/h, provide a fault detection and diagnostics (FDD) system to monitor economizer system operation and report faults"]
["Systems Requiring Energy Recovery"]
[null,"C403.5.1","Energy recovery (ER) - ventilation / exhaust systems","For systems with design OSA > 5,000 cfm, or design supply air cfm and % OSA exceeding the values in Tables C403.5.1(1) or (2), indicate exhaust air ER method; or exception taken with supporting calculations"]
[null,null,null,"For rooms served by multiple systems with aggregate design OSA > 5,000 cfm, or aggregate design supply air cfm and % OSA exceeding the values in Tables C403.5.1(1) or (2), indicate exhaust air ER method; or exception taken with supporting calculations"]
[null,null,null,"Indicate ER rated effectiveness that increases OSA enthalpy by ≥ 50% based on delta between OSA and return air enthalpies at design conditions"]
[null,"C403.2.7.2","Laboratory exhaust systems (energy recovery)","For buildings with total lab exhaust > 5,000 cfm, indicate method of energy recovery used to pre-condition laboratory make-up air; ER effectiveness (min 25°F); or alternative method per exception (VAV exhaust, semi-conditioned makeup, or CERM calculation)"]
[null,"C404.10.4 \n(under C404.11)","Pools and permanent spas exhaust systems \n(energy recovery)","For buildings with pools or spas with water surface area > 200 sf, indicate exhaust air ER method and use of waste heat (preheat ventilation air, pool water or service hot water); or exception taken"]
[null,null,null,"Indicate ER system has the rated effectiveness and is configured to decrease the exhaust air temperature at design conditions by ≥ 36°F "]
[null,"C403.5.2","Energy recovery - \nsteam condensate systems","For buildings with on-site steam heating systems, indicate condensate water ER"]
[null,null,null,"For buildings that use off-site generated steam where condensate is not returned to the source, indicate on-site condensate water ER"]
[null,"C403.5.3","Energy recovery - \ncooler / freezer condensers","For buildings with food service, meat or deli departments that have ≥ 500,000 Btu/h of remote refrigeration capacity for coolers / freezers, indicate condenser ER and use of captured energy (service water heating, space heating, or dehumidification reheating)\n"]
[null,null,null,"For buildings with ≥ 40,000 sf conditioned floor area and with ≥ 1,000,000 Btu/h of remote refrigeration capacity for coolers / freezers, indicate condenser ER and use of captured energy for service water heating and also for space heating, or dehumidification reheating\n"]
[null,"C403.5.4","Energy recovery -\ncondenser systems","For buildings with 24-hour operation and with > 1,500,000 Btu/h of heat rejection capacity and design service hot water load > 250,000 Btu/h, indicate condenser ER to pre-heat service water; or exception taken. Provide calculations showing the amount of recovered heat that is utilized (60% of peak heat rejection load or pre-heat service water to 85°F)."]
["Hydronic System Controls"]
[null,"C403.2.13\nC403.4.2.7","Variable flow control -\nhydronic system pumps","For hydronic system pump motors ≥ 7.5 hp, indicate method of variable flow control (VSD or equivalent method that requires ≥ 30% design wattage at 50% design fluid flow); note exception taken"]
[null,null,null,"Identify whether hydronic coils have DDC controls and associated manner of pump speed control (differential pressure, zone hydronic demand, etc)"]
[null,"C403.2.5\nC403.4.2.4","Hydronic system setback and part load controls","For boilers that provide building heating, indicate controls that provide heating water temperature setback based on outdoor temperature"]
[null,null,null,"For heating and chilled water systems ≥ 300,000 Btu/h, indicate systems are configured to automatically reset supply water temperature based upon demand; or exception taken. \nIf system pump motor hp ≥ 3 hp, also indicate controls automatically reduce flow by ≥ 50%."]
[null,null,null,"For chilled water systems (≥ 300,000 Btu/h, pump motor hp ≥ 3 hp) that serve water-cooled unitary air conditioners, indicate VSD or staged pumps in chilled water system and heat rejection loop that reduce pump flow so that one control valve is nearly wide open, or to maintain a minimum differential pressure; or exception taken"]
[null,"C403.4.2","Boiler sequencing","Indicate automatic controls that sequence operation of multiple boilers"]
[null,"C403.4.6","Hot gas bypass limitation","For cooling equipment with hot gas bypass, provide either multiple step unloading or continuous capacity modulation; indicate bypass capacity per Table C403.4.6"]
[null,"C403.4.2.2","Two-pipe changeover systems","Indicate changeover deadband (min 15°F), heating / cooling mode scheduling and changeover temperature range (limit 30°F)"]
[null,"C403.4.2.6","Chiller / boiler plant pump isolation","Indicate controls are configured to automatically reduce overall plant flow and shut-off flow through individula chillers and boilers when not in use"]

{"sheet":"SWH-CHK","index":6,"n_rows":66,"n_cols":6,"rows_kept":66,"cut":false,"hidden":false,"merged":[[55,0,55,5],[31,0,32,0],[31,1,32,1],[31,2,32,2],[46,1,47,1],[46,2,47,2],[43,0,44,0],[43,1,44,1],[43,2,44,2],[46,0,47,0],[33,0,34,0],[33,1,34,1],[33,2,34,2],[51,0,53,0],[51,1,53,1],[51,2,53,2],[41,0,42,0],[41,1,42,1],[41,2,42,2],[48,0,50,0],[48,1,50,1],[48,2,50,2],[2,2,2,3],[3,0,3,3],[26,0,27,0],[26,1,27,1],[26,2,27,2],[7,0,9,0],[7,1,9,1],[7,2,9,2],[16,0,17,0],[16,1,17,1],[16,2,17,2],[20,0,21,0],[20,1,21,1],[20,2,21,2]]}
["Service Water Heating Permit Plans Checklist ",null,null,null,null,"SWH-CHK"]
[{"$f":"ReadMe!A2","v":"2015 Washington State Energy Code Compliance Forms for Commercial Buildings including R2 & R3 over 3 stories and all R1 "},null,null,null,null,{"$f":"ReadMe!B3","v":"Revised January 2017"}]
["Project Title:",null,{"$f":"IF('MECH-SUM'!D3=\"1 - This title will copy onto other forms\",\"Fill this line out on MECH-SUM\",'MECH-SUM'!D3)","v":"Fill this line out on MECH-SUM"},null,"Date",{"$f":"'MECH-SUM'!H3","v":"2015-01-01"}]
["The following information is necessary to check a permit application for compliance with the mechanicial systems and equipment requirements of the Washington State Energy Code, Commercial Provisions."]
["Applicable (yes,no,na)","Code Section","Code Provision","Information Required - Must be in permit documents","Location in Documents","Building Department Notes"]
["Equipment - Sizing, Performance and Type"]
[null,"C404.2","SWH equipment type and efficiency","Provide equipment schedule on plans indicating type and capacity; indicate efficiency complies with required federal standard"]
[null,"C404.2.1","High input-rated SWH systems","For individual SWH equipment serving an entire building with ≥ 1,000,000 Btu/h capacity, indicate thermal efficiency ≥ 90%; or exception taken"]
[null,null,null,"For buildings with aggregate capacity of all SHW equipment ≥ 1,000,000 Btu/h (exclude < 100,000 Btu/h equipment from threshold calculation), indicate average capacity weighted thermal efficiency ≥ 90%; or exception taken"]
[null,null,null,"If applying Exception 1 for site-solar or site-recovered energy, provide calculations and source of annual service water heating energy use estimate "]
[null,"C404.4","Heat traps","Indicate piping connected to equipment have heat traps on supply and discharge"]
[null,"C404.5","Insulation under electric water heater","For electric water heaters located in unconditioned spaces or on concrete floors, indicate R-10 insulation under equipment"]
["Piping Systems"]
[null,"C404.6","Insulation of piping","Indicate thickness of piping insulation on plans per Table C403.2.9; verify insulation is provided -  from the water heater to the final fixture in a line, from the inlet / outlet piping at water heater to heat trap (up to 8 feet), and on piping that is heat traced; note exceptions taken"]
[null,"C404.3","Efficient SWH supply piping","Indicate method of compliance on plans for all piping runs connecting service hot water source to hot water fixture (maximum pipe length or maximum pipe volume method per Table C404.3.1); provide calculations for all piping runs documenting the total length and / or volume"]
["Service Water Heating System Controls"]
[null,"C404.7.1\nC404.8 ","Heated-water circulating systems","For circulation systems with dedicated return piping, indicate controls are configured to automatically start pump based on demand for hot water and shut-off pump when there is no demand and when the desired water temperature is met "]
[null,null,null,"For circulation systems with cold water supply piping serving as the return, indicate controls are configured to automatically start pump based on demand for hot water and shut-off pump when there is no demand, or when temperature of water entering the cold water supply pipe is ≥ 104°F "]
[null,"C404.7.2","Heat trace system controls","For heat trace systems provided to maintain temperature of service hot water in piping, indicate controls are configured to de-energize system when there is no demand for hot water and when the desired water temperature is met "]
[null,"C404.7.3","Controls for hot water storage","For systems with separate water heater and storage tank, indicate controls are configured to limit operation time of pump after end of heating cycle to ≤ 5 minutes"]
[null,"C403.2.13\nC403.4.2.7","Variable flow control - pumps","For SWH, pool / spa and pressure boosting pump motors ≥ 7.5 hp, indicate method of variable flow control (VSD or equivalent method that requires ≥ 30% design wattage at 50% design fluid flow); note exception taken"]
[null,null,null,"Identify basis of pump speed control (differential or static pressure setpoint, pressure, zone load demand, etc)"]
["Pools and Permanent Spas - Equipment and Controls (Sections are under C404.11)"]
[null,"C404.10.1","Pool heating equipment efficiency","Provide equipment schedule on plans indicating type and capacity for all pool heating equipment; indicate efficiency complies with required federal standard; for heat pump water heaters indicate COP ≥ 4"]
[null,"C403.2.13","Variable flow control - pumps","Refer to Service Water Heating System Controls"]
[null,"C404.10.1\nC404.10.2","Pool heater on / off controls","Indicate automatic on / off control based on scheduling and readily accessible on / off switch on heater that operates independent of thermostat setting; note exceptions taken"]
[null,"C404.10.3","Pool covers","For all pools and in-ground permanent spas, indicate a vapor retardant cover on plans"]
[null,null,null,"For all pools and in-ground spas heated to > 90°F, indicate cover shall include insulation ≥ R-12"]
[null,"C404.10.3","Pool assembly insulation","For all pools and in-ground spas heated to > 90°F, Indicate on plans that sides and bottom are  provided with insulation ≥ R-12"]
[null,"C404.12","Energy consumption of portable spas","Indicate portable spa complies with Association of Pool and Spa Professionals APSP-14"]
["Energy Recovery (ER) Systems - Service Water Heating and Pool Systems"]
[null,"C404.10.4 \n(Section under C404.11)","Pools and permanent spas exhaust systems \n(energy recovery)","For buildings with pools or permanent spas with water surface area > 200 sf, indicate exhaust air ER method and use of waste heat (preheat ventilation air, pool water or service hot water); or exception taken"]
[null,null,null,"Indicate ER system has the rated effectiveness and is configured to decrease the exhaust air temperature at design conditions by ≥ 36°F "]
[null,"C403.5.3","Energy recovery - \ncooler / freezer condensers","For buildings with food service, meat or deli departments that have ≥ 500,000 Btu/h of remote refrigeration capacity for coolers / freezers, indicate if condenser ER will be used to pre-heat service water"]
[null,null,null,"For buildings with ≥ 40,000 sf conditioned floor area and with ≥ 1,000,000 Btu/h of remote refrigeration capacity for coolers / freezers, indicate if condenser ER will be used to pre-heat service water"]
[null,"C403.5.4","Energy recovery - \ncondenser systems","For buildings with 24-hour operation and > 1,500,000 Btu/h of heat rejection capacity and design SWH load > 250,000 Btu/h, indicate condenser ER to pre-heat service water; or exception taken. Provide calculations showing the amount of recovered heat that is utilized (60% of peak heat rejection load or pre-heat service water to 85°F). "]
[null,"C404.10","Drain water heat recovery units","For systems incorporating drain water ER, indicate system design complies with CSA B55.2 (or CSA 55.1 for Group R); indicate potable waterside pressure loss at design flow is < 10 psi"]
["Service Water Heating Energy Use Metering"]
[null,"C404.9","SWH energy usage in dwelling units","For Group R-2 multi-family buildings with central SWH systems, provide metering of hot water energy usage per dwelling unit; indicate metering and data reporting method"]
[null,"C409.3.2","SWH equipment energy use metering","For new buildings > 50,000 sf and building additions > 25,000 sf, with total SWH equipment capacity ≥ 50 kW ( ≥ 170,600 Btu/h), verfiy energy use metering of all SWH equipment will be provided per C409"]
["Additional Efficiency Package Option, Reduced Energy Use In Service Water Heating - Must comply with both provisions to be eligible"]
[null,"C406.7.1","Eligible building type","To comply with additional efficiency package option, verify that ≥ 90% of the conditioned floor area of the building is one or more of the occupancies identified in this section, OR;"]
[null,null,null,"Provide whole building energy analysis per C407 that demonstrates the SWH load in the building is ≥ 10% of total building energy loads"]
[null,"C406.7.2\nC403.5.4","Load fraction","To comply with additional efficiency package option, provide documentation that verifies\n≥ 60% of building annual SWH energy is provided by high efficiency sources (heat pump water heater with COP ≥ 3, waste heat recovery, solar water-heating system);"]
[null,null,null,"For buildings with 24-hour operation and with > 1,500,000 Btu/h of heat rejection capacity and design service hot water load > 250,000 Btu/h (per C403.5.4); provide documentation that verifies ≥ 100% of building annual SWH energy is provided by condenser energy recovery or other high efficiency source"]
["Documentation and Specific System Requirements to Supporting Commissioning"]
[null,"C408.4","Scope of service water heating systems commissioning","Indicate that all SWH equipment and controls for which the WSEC requires control functions and / or configuration to perform specific functions are required to be commissioned;+D7"]
[null,null,null,"For buildings where the largest SWH system has ? 200,000 Btu/h total output capacity, indicate that all SWH systems regardless of individual capacity are required to be commissioned."]
[null,"C408.4.1.3","Scope of pool and permanent spa systems commissioning ","Indicate that all pool and permanent spa water heating systems regardless of individual capacity are required to be commissioned; "]
[null,null,null,"Indicate that energy recovery equipment that heats pool water regardless of capacity is required to be commissioned;"]
[null,null,null,"Identify all pool heating and energy recovery equipment and controls that the WSEC defines as being capable of and / or configured to perform specific functions."]
[null,"C404.13 \nC408.1.1\nC408.1.2\nC408.1.4.2\nC103.6","Commissioning requirements in construction documents","Indicate in plans and specifications that Cx per C408 is required for all applicable service water heating systems;"]
[null,null,null,"Include general summary with at a minimum of Items 1 thru 4 of the Cx plan per C408.1.2 including: narrative description of activites, responsibilities of the Cx team, schedule of activities including verification of project close out documentation per C103.6, and conflict of interest plan (if required);"]
[null,null,null,"Include in general summary that a Cx project report or Compliance Checklist (Figure C408.1.4.2) shall be completed by the Certified Cx Professional and provided to the owner prior to the final mechanical inspection."]
[null,"C408.4.1","Functional performance testing criteria","Identify in plans and specifications the intended operation of all equipment and controls during all modes of operation, including interfacing between new and existing-to-remain systems"]
["Project Close Out Documentation"]
[null,"C103.6","Documentation and project close out submittal requirements","Indicate in plans that project close out documentation and training of building operations personnel is required for all SWH components, equipment and systems governed by this code; indicate close out documentation shall include: record documents, O&M manuals, applicable WSEC compliance forms and calculations"]
[]
[]
[]
[]
[]
[]
["Yes"]
["No "]
["NA"]

{"sheet":"MECH-VENT","index":7,"n_rows":57,"n_cols":13,"rows_kept":57,"cut":false,"hidden":true,"merged":[[2,8,2,9],[3,3,3,7],[4,3,4,7],[5,3,5,7],[6,3,6,7],[2,2,2,7]]}
["Ventilation Summary",null,null,null,null,null,null,null,null,"MECH-VENT"]
[{"$f":"ReadMe!A2","v":"2015 Washington State Energy Code Compliance Forms for Commercial Buildings including R2 & R3 over 3 stories and all R1 "},null,null,null,null,null,null,null,null,{"$f":"ReadMe!B3","v":"Revised January 2017"}]
["Project Title:",null,{"$f":"IF('MECH-SUM'!D3=\"1 - This title will copy onto other forms\",\"Fill this line out on MECH-SUM\",'MECH-SUM'!D3)","v":"Fill this line out on MECH-SUM"},null,null,null,null,null,{"$f":"'MECH-SUM'!H3","v":"2015-01-01"}]
[null,null,null,null,null,null,null,null,"For Building Dept. Use"]
[]
[]
[]
[]
["Space(s) Served"," Type of System (Note 1)","System Id (s)","Floor Area Served (ft2)","Supply CFM","Ventilation CFM","Ventilation Standard","Zones requiring DCV","DCV Method","Energy Recovery",null,null,"Hours of operation?"]
["bottom","DOAS","a",null,null,null,"IMC","All","None","C403.5.1 Ventilation"]
["middle","Natural Ventilation",null,null,null,null,"IMC multizone","All Zones > 25 occupants/1000SF. ","Zone Level","C403.2.5.4.2 Lab exhaust"]
["top","High Performance VAV","c",null,null,null,"IMC Natural ventilation","Some","System Level","C404.10.4 Pool & spa exhaust"]
["other top","Other Airhandler","c",null,null,null,"ASHRAE 62.1","None",null,"C403.6 DOAS"]
[null,null,null,null,null,null,"OSHA",null,null,"Provided but not required"]
[null,null,null,null,null,null,"WAC",null,null,"Not provided, not required"]
[null,null,null,null,null,null,"IFC"]
[]
[]
[]
[]
[]
[]
[]
[]
[]
[]
[]
[]
[]
[]
[]
[]
[]
[]
[]
[]
[]
[]
[]
[]
[]
[]
[]
[]
["DOAS"]
["Natural Ventilation"]
["High Performance VAV"]
["Other Airhandler"]
[]
[]
["IMC","Minimum per IMC"]
["IMC multizone","Min per IMC/ASHRAE Multizone Equation"]
["IMC Natural ventilation","Natural ventilation per IMC 402"]
["ASHRAE 62.1","ASHRAE 62.1 per WS-IMC 403.2"]
["OSHA","Minimum per OSHA"]
["WAC","Minimum per WAC"]
["IFC","Minimum per IFC"]

{"sheet":"MECH-VENT org","index":8,"n_rows":23,"n_cols":15,"rows_kept":23,"cut":false,"hidden":true,"merged":[[6,3,6,8],[2,2,2,8],[2,10,2,11],[3,3,3,8],[4,3,4,8],[5,3,5,8]]}
["Ventilation Summary",null,null,null,null,null,null,null,null,null,null,"MECH-VENT"]
[{"$f":"ReadMe!A2","v":"2015 Washington State Energy Code Compliance Forms for Commercial Buildings including R2 & R3 over 3 stories and all R1 "},null,null,null,null,null,null,null,null,null,null,{"$f":"ReadMe!B3","v":"Revised January 2017"}]
["Project Title:",null,{"$f":"IF('MECH-SUM'!D3=\"1 - This title will copy onto other forms\",\"Fill this line out on MECH-SUM\",'MECH-SUM'!D3)","v":"Fill this line out on MECH-SUM"},null,null,null,null,null,null,null,{"$f":"'MECH-SUM'!H3","v":"2015-01-01"}]
[null,null,null,null,null,null,null,null,null,null,"For Building Dept. Use"]
[]
[]
[]
[null,null,null,null,"I don't think we need this here.  Just on Mech EQ",null,null,null,"Or should this be average occupancy load.  A HP VAV would always be some and average would not make sense"]
["Space(s) Served"," Type of System (Note 1)","System Id (s)","Floor area Served","Fan Control","Supply CFM","Ventilation CFM","Basis of Ventilation Rate","Zones requiring DCV","Zones requiring OS control of OA dampers or fan if no DCV","DCV","Ventilation Air Energy Recovery",null,null,"Hours of operation?"]
["bottom","DOAS","a",null,"Constant volume (CV)",null,null,"Minimum per IMC","All",null,"None","C403.2.6.1 Ventilation"]
["middle","Nat Vent",null,null,"Variable air volume (VAV)",null,null,"Minimum per OSHA","Some",null,"Zone Level","C403.2.5.4.2 Lab exhaust"]
["top","HP VAV","c",null,"Two speed (TS)",null,null,"Minimum per WAC","None",null,"System Level","C404.10.4 Pool & spa exhaust"]
["other top","DOAS","c",null,"Variable speed (VS)",null,null,"Minimum per IFC",null,null,"Exp 1 ER","C403.6 DOAS"]
[null,null,null,null,"Not applicable",null,null,"Natural ventilation per IMC 402",null,null,"Exp 2 no DDC","Provided but not required","thoughts"]
[null,null,null,null,null,null,null,"ASHRAE 62.1 per WS-IMC 403.2",null,null,"Exp 3 < 750 CFM","Not Required","Buildings required to have DOAS per C403.6 must have DOAS, HPVAV, or natural vent everywhere"]
[null,null,null,null,null,null,null,"Not Applicable",null,null,"NONE - OS Control per C403.2.6.3",null,"C402.4.1.4 requires DOAS everywhere to get 40% WWR"]
[null,null,null,null,null,null,null,"Min per IMC/ASHRAE Multizone Equation",null,null,null,null,"C406.6 requires DOAS in 90% of cfa"]
[null,null,null,null,null,null,null,null,null,null,null,null,"C403.3 exception 1 allows DOAS areas to be exempt for economizer - language here is weird in that it talks about systems be exempt but many would think of the DOAS system being separate from the H/C system which is how the new C407 DOAS fan power baseline is specified.  For our purposes we have several systems.  The common element is the spaces served."]
[null,null,null,null,null,null,null,null,null,null,null,null,"All DOAS areas need heating systems with cycling fans."]
[null,null,null,null,null,null,null,null,null,null,null,null,"Could have an area based DOAS table - only for buildings required to have doas or utlizing exception or credit that requires doas.  Have spaces served - if C403.6, C402.4.1.4, or C406.6 could have floor area, have a field"]
[null,null,null,null,null,null,null,null,null,null,null,null,"Could do single table  but will start to get complicated"]
[]
[null,null,null,null,null,null,null,null,null,null,"C403.2.6.3 - classrooms, gyms, auditoriums and conference rooms > 500SF"]

{"sheet":"MECH-ECONO","index":9,"n_rows":163,"n_cols":11,"rows_kept":163,"cut":false,"hidden":false,"merged":[[2,1,2,2],[60,1,60,2],[31,4,31,5],[20,4,20,5],[26,4,26,5],[15,4,15,5],[3,3,3,5],[4,3,4,5],[5,3,5,5],[6,3,6,5]]}
["Economizer Exceptions",null,null,null,null,"MECH-ECONO"]
[{"$f":"ReadMe!A2","v":"2015 Washington State Energy Code Compliance Forms for Commercial Buildings including R2 & R3 over 3 stories and all R1 "},null,null,null,null,{"$f":"ReadMe!B3","v":"Revised January 2017"}]
["Project Title:",{"$f":"IF('MECH-SUM'!D3=\"1 - This title will copy onto other forms\",\"Fill this line out on MECH-SUM\",IF('MECH-SUM'!D3=0,\"\",'MECH-SUM'!D3))","v":"Fill this line out on MECH-SUM"},null,null,null,{"$f":"'MECH-SUM'!H3","v":"2015-01-01"}]
[null,null,null,"For Building Dept. Use"]
[]
[]
[null,null,null," "]
[]
[null,null,null,null,"System ID","Lighting + Equipment Loads (W/sf)"]
[]
[]
[]
[]
[]
[]
[null,null,null,null,"System ID"]
[]
[]
[]
[]
[null,null,null,null,"System ID"]
[]
[]
[]
[]
[]
[null,null,null,null,"System ID"]
[]
[]
[]
[]
[null,null,null,null,"System ID"]
[]
[]
[]
[]
[null,null,null,"System ID","Equipment Location","Cooling Capacity (Btu/h)"]
[]
[]
[]
[]
[null,null,null,null,"Outdoor Unit System ID","Cooling Capacity (Btu/h)"]
[null,null,null,{"$f":"IF(AND(F43>0,F43<65000),1,0)","v":0}]
[null,null,null,{"$f":"IF(AND(F44>0,F44<65000),1,0)","v":0}]
[null,null,null,{"$f":"IF(AND(F45>0,F45<65000),1,0)","v":0}]
[null,null,null,{"$f":"IF(AND(F46>0,F46<65000),1,0)","v":0}]
[]
[null,null,null,null,"System ID","SEER, EER, & IEER"]
[null,null,null,{"$f":"IF(AND(F49>0,F49<65000),1,0)","v":0}]
[null,null,null,{"$f":"IF(AND(F50>0,F50<65000),1,0)","v":0}]
[null,null,null,{"$f":"IF(AND(F51>0,F51<65000),1,0)","v":0}]
[]
[null,null,null,null,"System ID","Lighting + Equipment Loads (W/sf)"]
[null,null,null,{"$f":"IF(AND(F54>0,F54<65000),1,0)","v":0}]
[null,null,null,{"$f":"IF(AND(F55>0,F55<65000),1,0)","v":0}]
[]
[null,{"$f":"IF(SUM(D56:D120)>0,\"UNIT CAPACITY IS LESS THAN REQUIRED BY CS EXP6\",\"\")","v":""},null,{"$f":"IF(AND(F57>0,F57<65000),1,0)","v":0},null,null,null,null,null,null,1]
[]
["Economizer Exceptions, cont.",null,null,null,null,"MECH-ECONO"]
[{"$f":"A2","v":"2015 Washington State Energy Code Compliance Forms for Commercial Buildings including R2 & R3 over 3 stories and all R1 "},null,null,null,null,{"$f":"F2","v":"Revised January 2017"}]
["Project Title:",{"$f":"C3","v":0},null,null,null,{"$f":"F3","v":"2015-01-01"}]
[]
[null,null,null,"System ID","Compliance Option","Cooling Capacity (Btu/h)"]
[]
[]
[]
[]
[]
[]
[]
[]
[null,null,null,null,"Total Claimed Exempt Capacity:",{"$f":"SUM(F64:F71)","v":0}]
[null,null,null,null,"Total building air economizer capacity (if claimed > 240 kBtu/h):"]
[null,{"$f":"IF(F72>0,IF(F72<=240000,\"\",IF(F72<=F74,\"\",\"EXCEEDS EXP 10 CAPACITY LIMIT\")),\"\")","v":""},null,null,"Alternate Exp 10 Capacity Limit:",{"$f":"IF(AND(ISNUMBER(F73),F73>0),0.1*F73,0)","v":0}]
[]
[]
[null,null,null,null,"System ID","Alt. Strategy"]
[null,null,null,{"$f":"IF(AND(F78>0,F78<65000),1,0)","v":0}]
[null,null,null,0]
[null,{"$f":"IF(SUM(D78:D144)>0,\"UNIT CAPACITY IS LESS THAN REQUIRED BY CS EXP6\",\"\")","v":""},null,0]
[null,{"$f":"IF(SUM(D79:D145)>0,\"UNIT CAPACITY IS LESS THAN REQUIRED BY CS EXP6\",\"\")","v":""},null,0]
[null,{"$f":"IF(SUM(D80:D146)>0,\"UNIT CAPACITY IS LESS THAN REQUIRED BY CS EXP6\",\"\")","v":""},null,0]
[null,{"$f":"IF(SUM(D81:D147)>0,\"UNIT CAPACITY IS LESS THAN REQUIRED BY CS EXP6\",\"\")","v":""},null,0]
[]
[]
[null,null,null,null,"System ID","Cooling Capacity (Btu/h)"]
[]
[]
[]
[]
[]
[]
[null,null,null,null,"Total Claimed Exempt Capacity:",{"$f":"SUM(F87:F92)","v":0}]
[null,null,null,null,"Total building air economizer capacity (if claimed > 72,000 Btu/h):"]
[null,{"$f":"IF(F93>0,IF(F93<=72000,\"\",IF(F93<=F95,\"\",\"EXCEEDS C503.4 EXP 2 CAPACITY LIMIT\")),\"\")","v":""},null,null,"Alternate C503.4 Exp 2 Capacity Limit:",{"$f":"IF(AND(ISNUMBER(F94),F94>0),0.05*F94,0)","v":0}]
[]
[null,null,null,null,"System ID","Cooling Capacity (Btu/h)"]
[]
[]
[]
[]
[null,null,null,null,"Total Claimed Exempt Capacity:",{"$f":"SUM(F98:F101)","v":0}]
[null,null,null,null,"Total building air economizer capacity (if claimed > 480,000 Btu/h):"]
[null,{"$f":"IF(F102>0,IF(F102<=480000,\"\",IF(F102<=F104,\"\",\"EXCEEDS C503.4 EXP 3 CAPACITY LIMIT\")),\"\")","v":""},null,null,"Alternate C503.4 Exp 3 Capacity Limit:",{"$f":"IF(AND(ISNUMBER(F103),F103>0),0.2*F103,0)","v":0}]
[]
[null,null,null,"System ID","Equipment Type","Compliance Path"]
[]
[]
[]
[]
[]
[]
[]
[]
[]
[]
[]
[]
[]
[]
[]
[]
[]
[]
["Eco Exp 6 Equipment Locations  "]
["Outdoor"]
["Mech Room"]
["Other"]
[]
[]
[]
[]
[]
[]
[]
["Eco Exp 10 Option"]
["Option a"]
["Option b"]
["Option c"]
[]
[]
["C503.4 Equipment Types"]
["1. Packaged Units"]
["2a. Split Systems < 54,000 Btu/h"]
["2b. Split Systems ≥ 54,000 Btu/h"]
["3a. Water Source Heat Pump < 54,000 Btu/h"]
["3b. Water Source Heat Pump ≥ 54,000 Btu/h"]
["4. Hydronic Economizer using air-cooled heat rejection equipment (dry cooler)"]
["5. Air-Handling Unit with air-cooled chiller"]
["6a. Air-Handling Unit with water-cooled chiller"]
["6b. Process Equipment with water-cooled chiller"]
["7. Cooling Tower"]
["8. Air-Cooled Chiller"]
["9. Water-Cooled Chiller"]
["10. Boiler"]
[]
[]
[]
["C503.4 Option"]
["Option A"]
["Option B"]
["Option C"]
["Option D"]

{"sheet":"MECH-FANSYS-SUM","index":10,"n_rows":33,"n_cols":5,"rows_kept":33,"cut":false,"hidden":false,"merged":[[2,3,2,4],[2,1,2,2],[9,6,11,14]]}
["Mechanical Fan System Power Allowance",null,null,null,"MECH-FANSYS-SUM"]
[{"$f":"ReadMe!A2","v":"2015 Washington State Energy Code Compliance Forms for Commercial Buildings including R2 & R3 over 3 stories and all R1 "},null,null,null,{"$f":"ReadMe!B3","v":"Revised January 2017"}]
["Project Title:",{"$f":"IF('MECH-SUM'!D3=\"1 - This title will copy onto other forms\",\"Fill this line out on MECH-SUM\",IF('MECH-SUM'!D3=0,\"\",'MECH-SUM'!D3))","v":"Fill this line out on MECH-SUM"},null,{"$f":"'MECH-SUM'!H3","v":"2015-01-01"}]
[null,null,null,"For Building Dept. Use"]
[]
[]
[]
["HVAC Air Distribution System Schedule"]
["System or Primary Supply Fan ID","Speed Control\n(Note 1)","Description \n(Note 2)","System Total Nameplate HP (Note 3)","Fan Power Calculation Required\n(Note 4)"]
[null,null,null,null,{"$f":"IF(D10<=0,\"\",IF(D10<=5,\"No\",\"Yes\"))","v":""}]
[null,null,null,null,{"$f":"IF(D11<=0,\"\",IF(D11<=5,\"No\",\"Yes\"))","v":""}]
[null,null,null,null,""]
[null,null,null,null,""]
[null,null,null,null,""]
[null,null,null,null,""]
[null,null,null,null,""]
[null,null,null,null,""]
[null,null,null,null,""]
[null,null,null,null,""]
[null,null,null,null,""]
[]
[]
["MECH-FANSYS Forms"]
[]
[]
[]
["CV"]
["VAV"]
["Hospital/Lab"]
[]
["Yes"]
["< 5 hp"]
["No"]

{"sheet":"MECH-FANSYS","index":11,"n_rows":114,"n_cols":12,"rows_kept":114,"cut":false,"hidden":false,"merged":[[19,3,19,5],[2,4,2,5],[6,2,6,5],[2,2,2,3],[3,2,3,3],[4,2,4,3],[5,2,5,3]]}
["Mechanical Fan System Power Allowance",null,null,null,null,"MECH-FANSYS"]
[{"$f":"ReadMe!A2","v":"2015 Washington State Energy Code Compliance Forms for Commercial Buildings including R2 & R3 over 3 stories and all R1 "},null,null,null,null,{"$f":"ReadMe!B3","v":"Revised January 2017"}]
["Project Title:",{"$f":"IF('MECH-SUM'!D3=\"1 - This title will copy onto other forms\",\"Fill this line out on MECH-SUM\",IF('MECH-SUM'!D3=0,\"\",'MECH-SUM'!D3))","v":"Fill this line out on MECH-SUM"},null,null,{"$f":"'MECH-SUM'!H3","v":"2015-01-01"}]
[null,null,null,null,"For Building Dept. Use"]
["Fan System ID"]
["System Supply Fan Speed Control "]
["Compliance Option ",null,null,null,null,null,null,null,null,"i``","i","i`"]
["Fan System Supply CFM Total",{"$f":"SUMIF(B11:B15,\"*Supply*\",D11:D15)","v":0}]
["Fan Equipment Schedule",null,null,null,null,null," if any entry in b:f then B:E must be completed, if BHP option then F must be entered"]
["Fan ID and Location","Fan Type","Quantity of Fan Type","\nTotal CFM\n(Note 1)","Total Nameplate HP (Note 2)","Total BHP\n(Note 3)","-1=nothing entered,0=good to go, 2=data not complete nhp, 3 data not complete bhp","0=good to go, nothing entered, or compliance option=Nameplate, 1= max hp error hp too big  (only for bhp compliance option)"]
[null,null,null,null,null,null,{"$f":"IF(AND(B11=\"\",C11<=0,D11<=0,E11<=0,F11<=0),-1,IF($B$7=\"Nameplate HP\",IF(AND(B11<>\"\",C11>0,D11>0,E11>0),0,2),IF(AND(B11<>\"\",C11>0,D11>0,E11>0,F11>0),0,3)))","v":-1},{"$f":"IF($B$7=\"Nameplate HP\",0,IF(G11<>0,0,IF(E11>IF(F11<=6,IF(INDEX(NominalMotorSizes,MATCH(F11,NominalMotorSizes,1)+1,1)/F11>1.5,INDEX(NominalMotorSizes,MATCH(F11,NominalMotorSizes,1)+1,1),INDEX(NominalMotorSizes,MATCH(F11,NominalMotorSizes,1)+2,1)),IF(INDEX(NominalMotorSizes,MATCH(F11,NominalMotorSizes,1)+1,1)/F11>1.3,INDEX(NominalMotorSizes,MATCH(F11,NominalMotorSizes,1)+1,1),INDEX(NominalMotorSizes,MATCH(F11,NominalMotorSizes,1)+2,1))),1,0)))","v":0}]
[null,null,null,null,null,null,{"$f":"IF(AND(B12=\"\",C12<=0,D12<=0,E12<=0,F12<=0),-1,IF($B$7=\"Nameplate HP\",IF(AND(B12<>\"\",C12>0,D12>0,E12>0),0,2),IF(AND(B12<>\"\",C12>0,D12>0,E12>0,F12>0),0,3)))","v":-1},{"$f":"IF($B$7=\"Nameplate HP\",0,IF(G12<>0,0,IF(E12>IF(F12<=6,IF(INDEX(NominalMotorSizes,MATCH(F12,NominalMotorSizes,1)+1,1)/F12>1.5,INDEX(NominalMotorSizes,MATCH(F12,NominalMotorSizes,1)+1,1),INDEX(NominalMotorSizes,MATCH(F12,NominalMotorSizes,1)+2,1)),IF(INDEX(NominalMotorSizes,MATCH(F12,NominalMotorSizes,1)+1,1)/F12>1.3,INDEX(NominalMotorSizes,MATCH(F12,NominalMotorSizes,1)+1,1),INDEX(NominalMotorSizes,MATCH(F12,NominalMotorSizes,1)+2,1))),1,0)))","v":0}]
[null,null,null,null,null,null,{"$f":"IF(AND(B13=\"\",C13<=0,D13<=0,E13<=0,F13<=0),-1,IF($B$7=\"Nameplate HP\",IF(AND(B13<>\"\",C13>0,D13>0,E13>0),0,2),IF(AND(B13<>\"\",C13>0,D13>0,E13>0,F13>0),0,3)))","v":-1},{"$f":"IF($B$7=\"Nameplate HP\",0,IF(G13<>0,0,IF(E13>IF(F13<=6,IF(INDEX(NominalMotorSizes,MATCH(F13,NominalMotorSizes,1)+1,1)/F13>1.5,INDEX(NominalMotorSizes,MATCH(F13,NominalMotorSizes,1)+1,1),INDEX(NominalMotorSizes,MATCH(F13,NominalMotorSizes,1)+2,1)),IF(INDEX(NominalMotorSizes,MATCH(F13,NominalMotorSizes,1)+1,1)/F13>1.3,INDEX(NominalMotorSizes,MATCH(F13,NominalMotorSizes,1)+1,1),INDEX(NominalMotorSizes,MATCH(F13,NominalMotorSizes,1)+2,1))),1,0)))","v":0}]
[null,null,null,null,null,null,{"$f":"IF(AND(B14=\"\",C14<=0,D14<=0,E14<=0,F14<=0),-1,IF($B$7=\"Nameplate HP\",IF(AND(B14<>\"\",C14>0,D14>0,E14>0),0,2),IF(AND(B14<>\"\",C14>0,D14>0,E14>0,F14>0),0,3)))","v":-1},{"$f":"IF($B$7=\"Nameplate HP\",0,IF(G14<>0,0,IF(E14>IF(F14<=6,IF(INDEX(NominalMotorSizes,MATCH(F14,NominalMotorSizes,1)+1,1)/F14>1.5,INDEX(NominalMotorSizes,MATCH(F14,NominalMotorSizes,1)+1,1),INDEX(NominalMotorSizes,MATCH(F14,NominalMotorSizes,1)+2,1)),IF(INDEX(NominalMotorSizes,MATCH(F14,NominalMotorSizes,1)+1,1)/F14>1.3,INDEX(NominalMotorSizes,MATCH(F14,NominalMotorSizes,1)+1,1),INDEX(NominalMotorSizes,MATCH(F14,NominalMotorSizes,1)+2,1))),1,0)))","v":0}]
[]
[null,null,null,"Total Proposed:",{"$f":"IF(SUM(E11:E15)>0,SUM(E11:E15),\"\")","v":""},{"$f":"IF(SUM(F11:F15)>0,SUM(F11:F15),\"\")","v":""},{"$f":"MAX(G11:G15)","v":-1},{"$f":"MAX(H11:H15)","v":0}]
[]
[null,null,null,"Total Allowance:",{"$f":"IF(AND(CFMs>0,CVVAV<>\"\"),CFMs*IF(OR(CVVAV=\"VAV\",CVVAV=\"Hospital/Lab\"),0.0015,0.0011),\"\")","v":""},{"$f":"IF(AND(CFMs>0,CVVAV<>\"\"),CFMs*IF(OR(CVVAV=\"VAV\",CVVAV=\"Hospital/Lab\"),0.0013,0.00094)+HpAdj,\"\")","v":""},null,"if no data, compliance option=nameplate hp=0, if compliance option =brake hp, 1=excessive, 0 okay."]
[]
["",null,"Compliance Message:",{"$f":"IF(G16=-1,\"\",IF(B6=\"\",\"Enter speed control in B6\",IF(B7=\"\",\"Enter Compliance Option in B7\",IF(G16>0,\"Complete yellow highlighted cells in fan entry\",IF(B8<=0,\"Enter at least one Supply Fan in schedule\",IF(H16=1,\"DOES NOT COMPLY.  Fan hp in orange cells too large (see C403.2.10.2)\",IF(B7=\"Brake HP\",IF(F16<=F18,\"COMPLIES\",\"DOES NOT COMPLY\"),IF(B7=\"C403.7 High Performance VAV Brake HP\",IF(F16<=F18*0.9,\"COMPLIES C403.2 & C403.7\",\"DOES NOT COMPLY\"),IF(E16<=E18,\"COMPLIES\",\"DOES NOT COMPLY\")))))))))","v":""}]
[]
["Brake Horsepower Allowance Adjustments"]
["Device Type","Description and Location"," CFM thorough this device (CFMD)","Assigned Pressure Drop, PD in w.c. \n(Note 6)","Calculated Pressure Drop, PD in w.c. \n(Note 7)","Adjustment, \nA in bhp\n(Note 8)"]
[null,null,null,{"$f":"IF(ISNA(VLOOKUP(A24,$A$95:$E$114,3,FALSE)),\"\",VLOOKUP(A24,$A$95:$E$114,3,FALSE))","v":""},null,{"$f":"IF(A24=\"\",\"\",MAX(D24,E24)*C24/4131)","v":""}]
[null,null,null,{"$f":"IF(ISNA(VLOOKUP(A25,$A$95:$E$114,3,FALSE)),\"\",VLOOKUP(A25,$A$95:$E$114,3,FALSE))","v":""},null,{"$f":"IF(A25=\"\",\"\",MAX(D25,E25)*C25/4131)","v":""}]
[null,null,null,{"$f":"IF(ISNA(VLOOKUP(A26,$A$95:$E$114,3,FALSE)),\"\",VLOOKUP(A26,$A$95:$E$114,3,FALSE))","v":""},null,{"$f":"IF(A26=\"\",\"\",MAX(D26,E26)*C26/4131)","v":""}]
[null,null,null,{"$f":"IF(ISNA(VLOOKUP(A27,$A$95:$E$114,3,FALSE)),\"\",VLOOKUP(A27,$A$95:$E$114,3,FALSE))","v":""},null,{"$f":"IF(A27=\"\",\"\",MAX(D27,E27)*C27/4131)","v":""}]
[]
[null,null,null,null,"Total Adjustment (bhp):",{"$f":"IF(OR(SUM(C24:C28)>0,F16<>\"\"),SUM(F24:F28),\"\")","v":""}]
[]
[]
[]
[]
["General Instructions:"]
[]
[]
[]
["Standard Motor Sizes"]
["OR only went to 200"]
[0]
[1]
[1.5]
[2,"Additional sizes found in some motor types / manufacturers"]
[3,4]
[5,5.5]
[7.5,7]
[10,12]
[15]
[20]
[25]
[30]
[40]
[50]
[60]
[75]
[100]
[125]
[150]
[200,175]
[250]
[300]
[350]
[400]
[450]
[500]
[]
[]
["Fan Types"]
["Supply"]
["Return"]
["Exhaust"]
["Hood Exhaust"]
["Series Fan Powered Terminal"]
["Make-up Air - Supply"]
["ERV - Supply"]
["ERV - Exhaust"]
["DOAS - Supply"]
["DOAS - Exhaust"]
["Booster"]
["Other Supply"]
["Other+A25"]
[]
["Fan Control Types"]
["CV"]
["VAV"]
["Hospital/Lab"]
[]
["Compliance Options"]
["Nameplate HP"]
["Brake HP"]
["C403.7 High Efficiency VAV Brake HP"]
[]
["Brake Horsepower Power Allowance Adjustment Factors"]
["Device","Formula","Credit","Extra Info Caption"]
["No Adjustments",null,0]
["No central cooling device","-0.6 inch w.c.",-0.6,"none"]
["No central heating device","-0.3 inch w.c.",-0.3,"none"]
["Central resistance heat","-0.2 inch w.c.",-0.2,"none"]
["Fully ducted return and/or exhaust","0.5 inch w.c. (2.15 inches w.c. for laboratory and vivarium systems)",0.5,"none"]
["Fully ducted return and/or exhaust, laboratory",null,2.15,"none"]
["Return and/or exhaust air flow control devices","0.5 inch w.c.",0.5,"none"]
["Exhaust filters, scrubbers, or treatment","The pressure drop of device calculated at fan system design condition"," ","device pressure drop (in. wc)"]
["Particulate filtration: MERV 9 - 12 ","0.5 inch w.c.",0.5,"none"]
["Particulate filtration: MERV 13 - 15 ","0.9 inch w.c.",0.9,"none"]
["Particulate filtration: MERV 16+","Pressure drop calculated at 2x clean filter pressure drop at fan system design condition"," ","2 times pressure drop of clean filter (in. wc)"]
["Particulate filtration: electronically enhanced filters","Pressure drop calculated at 2x clean filter pressure drop at fan system design condition"," ","2 times pressure drop of clean filter (in. wc)"]
["Carbon and other gas-phase air cleaners","Clean filter pressure drop at fan system design condition"," ","device pressure drop (in. wc)"]
["Biosafety cabinet ","Pressure drop of device at fan system design condition"," ","device pressure drop (in. wc)"]
["Energy recovery device, other than coil (Notes 4 & 5)","(2.2 × energy recovery effectiveness) –0.5 inch w.c. for each airstream"," ","ER effectiveness (0-1)"]
["Coil runaround loop (Note 4)"," 0.6 inch w.c. for each airstream",0.6,"none"]
["Evaporative humidifier/cooler in series with another cooling coil","Pressure drop of device at fan system design conditions"," ","device pressure drop (in. wc)"]
["Sound attenuation section"," 0.15 inch w.c.",0.15,"none"]
["Exhaust system serving fume hoods"," 0.35 inch w.c.",0.35,"none"]
["Lab and vivarium exhaust in high-rise buildings","0.25 inch w.c./100 feet of vertical duct exceeding 75'"," ","length of vertical duct (ft)"]

{"sheet":"MECH-FANSYS-DOC","index":12,"n_rows":27,"n_cols":4,"rows_kept":27,"cut":false,"hidden":false,"merged":[[3,1,3,2],[4,1,4,2],[6,1,6,2],[21,1,21,2]]}
["Fan Power Allowance Adjustment Factors ",null,null,"MECH-FANSYS-DOC"]
[{"$f":"ReadMe!A2","v":"2015 Washington State Energy Code Compliance Forms for Commercial Buildings including R2 & R3 over 3 stories and all R1 "},null,null,{"$f":"ReadMe!B3","v":"Revised January 2017"}]
[]
[null,"TABLE C403.2.11.1(2)"]
[null,"FAN POWER LIMITATION PRESSURE DROP ADJUSTMENT"]
[null,"Device","Adjustment"]
[null,"Credits"]
[null,"Fully ducted return and/or exhaust air systems","0.5 inch w.c. (2.15 inches w.c. for laboratory and vivarium systems)"]
[null,"Return and/or exhaust air flow control devices ","0.5 inch w.c."]
[null,"Exhaust filters, scrubbers, or other exhaust treatment","The pressure drop of device calculated at fan system design condition"]
[null,"Particulate filtration credit:  MERV 9 ‑ 12 ","0.5 inch w.c."]
[null,"Particulate filtration credit:  MERV 13 ‑ 15 ","0.9 inch w.c."]
[null,"Particulate filtration credit:  MERV 16 and greater and electronically enhanced filters","Pressure drop calculated at 2x clean filter pressure drop at fan system design condition"]
[null,"Carbon and other gas-phase air cleaners ","Clean filter pressure drop at fan system design condition"]
[null,"Biosafety cabinet ","Pressure drop of device at fan system design condition"]
[null,"Energy recovery device, other than coil runaround loop","(2.2 × energy recovery effectiveness) – 0.5 inch w.c. for each airstream"]
[null,"Coil runaround loop ","0.6 inch w.c. for each airstream"]
[null,"Evaporative humidifier/cooler in series with another cooling coil ","Pressure drop of device at fan system design conditions"]
[null,"Sound attenuation section (fans serving spaces with design background noise goals below NC35)","0.15 inch w.c."]
[null,"Exhaust system serving fume hoods ","0.35 inch w.c."]
[null,"Laboratory and vivarium exhaust systems in high-rise buildings ","0.25 inch w.c./100 feet of vertical duct exceeding 75 feet"]
[null,"Deductions"]
[null,"Systems without central cooling device"," -0.5 inch w.c."]
[null,"Systems without central heating device"," -0.3 inch w.c."]
[null,"Systems with central electric resistance heat "," -0.2 inch w.c."]
[null,"w.c. .= water column."]
[null,"For SI:  1 inch w.c..= 249 Pa, 1 inch.= 25.4 mm."]

{"sheet":"MECH-LOAD-CALC","index":13,"n_rows":8,"n_cols":6,"rows_kept":8,"cut":false,"hidden":false,"merged":[[6,3,6,4],[3,3,3,4],[4,3,4,4],[5,3,5,4]]}
["Design Load Calculation Summary",null,null,null,null,"MECH-LOAD-CALC"]
[{"$f":"ReadMe!A2","v":"2015 Washington State Energy Code Compliance Forms for Commercial Buildings including R2 & R3 over 3 stories and all R1 "}]
["Project Title:",null,{"$f":"IF('MECH-SUM'!D3=\"1 - This title will copy onto other forms\",\"Fill this line out on MECH-SUM\",IF('MECH-SUM'!D3=0,\"\",'MECH-SUM'!D3))","v":"Fill this line out on MECH-SUM"},null,null,{"$f":"'MECH-SUM'!H3","v":"2015-01-01"}]
[null,null,null,null,null,"For Building Dept. Use"]
[]
[]
[]
["Equip. ID","Area(s) Served","Heating Design Load  in Btu/h (Note 1)","Cooling Design Load in Btu/h (Note 1)","Calculation Method\n(Note 2)","Notes"]

{"sheet":"MECH-EQ","index":14,"n_rows":147,"n_cols":36,"rows_kept":147,"cut":false,"hidden":true,"merged":[[3,14,3,17],[4,14,4,17],[8,0,8,2],[5,3,5,5],[6,3,6,5],[7,3,7,5],[5,14,5,17],[6,14,6,17],[7,14,7,17],[8,12,8,16],[8,17,8,20],[80,3,80,8],[47,3,47,4],[46,3,46,6],[8,3,8,8],[2,7,2,9],[3,3,3,5],[4,3,4,5],[2,2,2,5]]}
["Cooling & Heating Equipment Schedule, Page 1",null,null,null,null,null,null,null,null,"MECH-EQ",null,"Cooling & Heating Equipment Schedule, Page 2",null,null,null,null,null,null,null,null,{"$f":"J1","v":"MECH-EQ"}]
[{"$f":"ReadMe!A2","v":"2015 Washington State Energy Code Compliance Forms for Commercial Buildings including R2 & R3 over 3 stories and all R1 "},null,null,null,null,null,null,null,null,{"$f":"ReadMe!B3","v":"Revised January 2017"},null,{"$f":"A2","v":"2015 Washington State Energy Code Compliance Forms for Commercial Buildings including R2 & R3 over 3 stories and all R1 "},null,null,null,null,null,null,null,null,{"$f":"J2","v":"Revised January 2017"}]
["Project Title:",null,{"$f":"IF('MECH-SUM'!D3=\"1 - This title will copy onto other forms\",\"Fill this line out on MECH-SUM\",IF('MECH-SUM'!D3=0,\"\",'MECH-SUM'!D3))","v":"Fill this line out on MECH-SUM"},null,null,null,null,{"$f":"'MECH-SUM'!H3","v":"2015-01-01"},null,null,null,"Project Title:",null,{"$f":"D3","v":0},null,null,null,null,null,null,{"$f":"H3","v":"2015-01-01"}]
[null,null,null,null,null,null,"For Building Dept. Use",null,null,null,null,null,null,null,{"$f":"D4","v":0},null,null,null,"For Building Dept. Use"]
[null,null,null,null,null,null,null,null,null,null,null,null,null,null,0]
[null,null,null,null,null,null,null,null,null,null,null,null,null,null,0]
[null,null,null,null,null,null,null,null,null,null,null,null,null,null,0]
[null,null,null,null,null,null,null,null,null,null,null,null,null,null,0]
["Heating and/or Cooling Systems (Note 1)",null,null,"Cooling System",null,null,null,null,null,null,null,null,"Heating System",null,null,null,null,"Air System"]
["Equip.\nID","Make & Model","Area(s) Served","WSEC Efficiency Table","Equipment Type","Condenser or Sub- Type"," Cooling Capacity, Btu/h\n(Note 2)","Rated Efficiency (Note 3 )","Rated Part Load Efficiency (Note 4)","Economizer exception - required % higher efficiency",null,{"$f":"A10","v":"Equip.\nID"},"WSEC Efficiency Table","Equipment Type","Sub-type or  Fuel","Capacity,  Btu/h \n(Note 5)","Rated Efficiency (Note 6)","Supply CFM","Ventilation CFM","Zone DCV or Occ. Sensors \n(Indicate type & zones(s) if required)","Ventilation Energy Recovery\n(Yes or Not required)","Cool table item range name","cooling equipment range name","ht table range","Heat table item range name","heating equipment range name","HP flag","lock heat Table (hp in cool list)","hp in heat list","old cool tab","old cool equp","old cool type","old heat tab","old heat equip","old heat equip type"]
[null,null,null,"Unrated",null,null,null,null,null,null,null,{"$f":"A11","v":0},"Unrated",null,null,null,null,null,null,null,null,{"$f":"IF(D11<>\"\",VLOOKUP(D11,$A$48:$B$55,2,FALSE),\"\")","v":"zTab_UnratedCoolEq"},{"$f":"IF(E11<>\"\",VLOOKUP(E11,E$50:F$68,2,FALSE),\"\")","v":""},{"$f":"IF(AND(V11<>\"\",V11<>\"None\"),  IF(V11=\"ztab_PTAC\",IF(W11=\"\",\"zTabHeat_nonHPplusPTHP\",IF(ISERR(FIND(\"HP\",W11,1)),\"zTabHeat_nonHP\",\"zTabHeat_ptHP\")), VLOOKUP(V11,D$50:G$69,4,FALSE)),\"zTabHeat_all\")","v":"zTabHeat_nonHP"},{"$f":"IF(M11<>\"\",VLOOKUP(M11,A$59:B$64,2,FALSE),\"\")","v":"ztab_unRatedHeatEq"},{"$f":"IF(N11<>\"\",VLOOKUP(N11,E$50:F$78,2,FALSE),\"\")","v":""},{"$f":"OR(ISNUMBER(SEARCH(\"HP\",E11)),ISNUMBER(SEARCH(\"Heat Pump\",E11)),ISNUMBER(SEARCH(\"HP\",N11)),ISNUMBER(SEARCH(\"Heat Pump\",N11)))","v":false},{"$f":"IF(OR(D11=\"C403.2.3(1)C VRF Air-to-air and Applied Heat Pumps\",D11=\"C403.2.3(2) Unitary & Applied Heat Pumps\",ISNUMBER(SEARCH(\"HP\",E11))),1,0)","v":0},{"$f":"IF(OR(M11=\"C403.2.3(1)D VRF Air-to-air and Applied Heat Pumps\",M11=\"C403.2.3(2) Unitary & Applied Heat Pumps\",ISNUMBER(SEARCH(\"HP\",N11))),1,0)","v":0},"None",null,null,"Unrated"]
[null,null,null,"C403.2.3(3) PTAC, PTHP, SPVAC/HP, Room AC","PTAC",null,null,null,null,null,null,{"$f":"A12","v":0},"C403.2.3(4) Furnaces and Unit Heaters",null,null,null,null,null,null,null,null,"ztab_PTAC","zAC_PTAC","zTabHeat_nonHP","zTab_Furnaces","",{"$f":"OR(ISNUMBER(SEARCH(\"HP\",E12)),ISNUMBER(SEARCH(\"Heat Pump\",E12)),ISNUMBER(SEARCH(\"HP\",N12)),ISNUMBER(SEARCH(\"Heat Pump\",N12)))","v":false},{"$f":"IF(OR(D12=\"C403.2.3(1)C VRF Air-to-air and Applied Heat Pumps\",D12=\"C403.2.3(2) Unitary & Applied Heat Pumps\",ISNUMBER(SEARCH(\"HP\",E12))),1,0)","v":0},{"$f":"IF(OR(M12=\"C403.2.3(1)D VRF Air-to-air and Applied Heat Pumps\",M12=\"C403.2.3(2) Unitary & Applied Heat Pumps\",ISNUMBER(SEARCH(\"HP\",N12))),1,0)","v":0},"C403.2.3(3) PTAC, PTHP, SPVAC/HP, Room AC","PTAC",null,"C403.2.3(4) Furnaces and Unit Heaters"]
[null,null,null,"C403.2.3(2) Unitary & Applied Heat Pumps","Thru the wall HP",null,null,null,null,null,null,0,null,null,null,null,null,null,null,null,null,"zTab_HP","zAC_Thru_the_wall_HP","zTabHeat_HP","","",true,1,0]
[null,null,null,null,null,null,null,null,null,null,null,0,null,null,null,null,null,null,null,null,null,"","","zTabHeat_all","","",false,0,0]
[null,null,null,null,null,null,null,null,null,null,null,0,null,null,null,null,null,null,null,null,null,"","","zTabHeat_all","","",false,0,0]
[null,null,null,null,null,null,null,null,null,null,null,0,null,null,null,null,null,null,null,null,null,"","","zTabHeat_all","","",false,0,0]
[null,null,null,null,null,null,null,null,null,null,null,0,null,null,null,null,null,null,null,null,null,"","","zTabHeat_all","","",false,0,0]
[null,null,null,null,null,null,null,null,null,null,null,0,null,null,null,null,null,null,null,null,null,"","","zTabHeat_all","","",false,0,0]
[null,null,null,null,null,null,null,null,null,null,null,0,null,null,null,null,null,null,null,null,null,"","","zTabHeat_all","","",false,0,0]
[null,null,null,null,null,null,null,null,null,null,null,0,null,null,null,null,null,null,null,null,null,"","","zTabHeat_all","","",false,0,0]
[null,null,null,null,null,null,null,null,null,null,null,0,null,null,null,null,null,null,null,null,null,"","","zTabHeat_all","","",false,0,0]
[null,null,null,null,null,null,null,null,null,null,null,0,null,null,null,null,null,null,null,null,null,"","","zTabHeat_all","","",false,0,0]
[null,null,null,null,null,null,null,null,null,null,null,0,null,null,null,null,null,null,null,null,null,"","","zTabHeat_all","","",false,0,0]
[null,null,null,null,null,null,null,null,null,null,null,0,null,null,null,null,null,null,null,null,null,"","","zTabHeat_all","","",false,0,0]
[null,null,null,null,null,null,null,null,null,null,null,0,null,null,null,null,null,null,null,null,null,"","","zTabHeat_all","","",false,0,0]
[null,null,null,null,null,null,null,null,null,null,null,0,null,null,null,null,null,null,null,null,null,"","","zTabHeat_all","","",false,0,0]
[null,null,null,null,null,null,null,null,null,null,null,0,null,null,null,null,null,null,null,null,null,"","","zTabHeat_all","","",false,0,0]
[null,null,null,null,null,null,null,null,null,null,null,{"$f":"A28","v":0},null,null,null,null,null,null,null,null,null,"","","zTabHeat_all","","",false,0,0,null,null,null,null,null,null,1]
[]
[null,null,null,null,"need to add air to water heat pump and accommodate heat recovery chiller for C406.2",null,null,null,null,null,null,null,null,"need to add air to water heat pump and accommodate heat recovery chiller for C406.2"]
[null,null,null,null,"consider switching heating and cooling since heating is narrower than cooling so area served would have room to fit."]
["When Cooling table is selected for an entry (column D above), column V does a look up of the table and is set to the associated Equipment name (B40:b51) ",null,null,null,null,null,null,null,null,null,null,null,null,null,null,null,null,null,null,"Probably delete","probably delete"]
["The associated equipment name points to a named ranged range within E42:E70 which is used to limit the user entries for Cooling Equipment Type column E above"]
["When the cooling equipment type (column E) is entered above, column W does a look up of the cooling equipment and is set to the Cool Equipment detail range in F40:f70."]
["The cool equipment detail name points to a named ranged range within c75:c125 which is used to limit the user entries for Condenser or sub type (column F above)"]
["Column X indicates the range (within B55:B60) of the heating tables allowed.  It monitors cooling tables, if nothing entered than any heating table ok, if heat pump then limits list to heat pump tables, if non-HP cooling then limits heating tables to non-HP heating tables.  "]
["This process is complicated because the PTHP table is also the PTAC table and also that all three entries (table, equipment type, and sub type will be the same when a heat pump is selected."]
["When Heating table is selected for an entry (column M above), column Y does a look up of the table and is set to the associated Equipment name (B55:b60) "]
["Columns AA:AG are used to further constrain the heating entry in all three fields to agree with cooling when a heat pump is entered.  It all works but it can likely be simpler"]
["The associated equipment name points to a named ranged range within E42:E70 which is used to limit the user entries for Heating Equipment Type column E above"]
["When the heating equipment type (column N) is entered above, column Z does a look up of the heating equipment and is set to the Heat Equipment detail range in F40:f70."]
["The heat equipment detail name points to a named ranged range within c75:c125 or A65:a68 which is used to limit the user entries for Fuel and sub type (column O above)"]
["Columns AA:AG are used by a code behind form triggered by worksheet_change to further constrain the heating entry and clear fields when a change is made that negates them.  ",null,null,null,null,null,"zAC_"]
[null,null,null,null,null,null,"zHT_"]
[null,null,null,null,null,null,"zHTsub"]
["Cooling Tables "]
["display","Associated Equipment",null,"Equipment Table Map"]
["C403.2.3(1)A Air Conditioners and Condensing Units","zTab_AC",null,null,null,null,null,null,null,null,null,"Is this used?"]
["C403.2.3(1)B VRF Air Conditioners","zTab_VRFAC",null,"Table range names","Allowed Cool EQ","Cool EQ Detail Range","allowable heat table range","heat eq range",null,null,49]
["C403.2.3(1)C VRF Air-to-air and Applied Heat Pumps","zTab_VRFHP",null,{"$f":"B$48","v":"zTab_AC"},"Air conditioner","zAC_Air_conditioner","zTabHeat_nonHP",null,null,null,50,null,"Heating Tables"]
["C403.2.3(2) Unitary & Applied Heat Pumps","zTab_HP",null,{"$f":"B$48","v":"zTab_AC"},"Thru the wall AC","zAC_Thru_the_wall_AC","zTabHeat_nonHP",null,null,null,51,"zTab_VRFAC","C403.2.3(1)D VRF Heat Pumps"]
["C403.2.3(3) PTAC, PTHP, SPVAC/HP, Room AC","ztab_PTAC",null,{"$f":"B$48","v":"zTab_AC"},"Condensing unit","zAC_Condensing_unit","zTabHeat_nonHP",null,null,null,52,"zTab_HP","C403.2.3(2) Unitary & Applied Heat Pumps"]
["C403.2.3(9) Computer Room AC and Condensing Units","zTab_CRAC",null,{"$f":"B49","v":"zTab_VRFAC"},"VRF AC","zAC_VRF_AC","zTabHeat_nonHP",null,null,null,53,"ztab_PTAC","C403.2.3(3) PTAC, PTHP, SPVAC/HP, Room AC"]
["Unrated","zTab_UnratedCoolEq",null,{"$f":"B50","v":"zTab_VRFHP"},"VRF HP","zAC_VRF_HP","zTabHeat_VRFHP",null,null,null,54,"zTab_Furnaces","C403.2.3(4) Furnaces and Unit Heaters"]
["None","zTab_None",null,{"$f":"B50","v":"zTab_VRFHP"},"VRF HP with Heat recovery","zAC_VRF_HP_with_Heat_recovery","zTabHeat_VRFHP",null,null,null,55,"ztab_unratedHeater","Unrated"]
[null,null,null,{"$f":"B51","v":"zTab_HP"},"Heat pump","zAC_Heat_pump","zTabHeat_HP",null,null,null,56,null,"None"]
["Heating Tables",null,null,{"$f":"B51","v":"zTab_HP"},"Thru the wall HP","zAC_Thru_the_wall_HP","zTabHeat_HP"]
["display","Associated Equipment",null,{"$f":"B51","v":"zTab_HP"},"Small duct high velocity HP","zAC_Small_duct_high_velocity_HP","zTabHeat_HP"]
["C403.2.3(1)C VRF Air-to-air and Applied Heat Pumps","zTab_VRFHP",null,{"$f":"B$52","v":"ztab_PTAC"},"PTAC","zAC_PTAC","zTabHeat_nonHPplusPTHP"]
["C403.2.3(2) Unitary & Applied Heat Pumps","zTab_HP",null,"ztab_PTAC","PTHP","zAC_PTHP","zTabHeat_PTHP"]
["C403.2.3(3) PTAC, PTHP, SPVAC/HP, Room AC","ztab_PTHP",null,"ztab_PTAC","SPVAC","zAC_SPVAC","zTabHeat_nonHPplusPTHP"]
["C403.2.3(4) Furnaces and Unit Heaters","zTab_Furnaces",null,"ztab_PTAC","SPVHP","zAC_SPVHP","zTabHeat_PTHP"]
["Unrated","ztab_unRatedHeatEq",null,"ztab_PTAC","Room AC","zAC_Room_AC","zTabHeat_nonHPplusPTHP"]
["None",null,null,"ztab_PTAC","Room HP","zAC_Room_HP","zTabHeat_PTHP"]
[null,null,null,{"$f":"B$53","v":"zTab_CRAC"},"CRAC","zAC_CRAC","zTabHeat_nonHP"]
["Unrated Equip",null,null,{"$f":"B$54","v":"zTab_UnratedCoolEq"},"Chilled Water","zAC_Chilled_Water","zTabHeat_nonHP"]
[null,null,null,{"$f":"B$54","v":"zTab_UnratedCoolEq"},"Evaporative","zAC_Evaporative","zTabHeat_nonHP"]
[null,null,null,{"$f":"B55","v":"zTab_None"},"None","zAC_None","zTabHeat_nonHP"]
["Gas",null,null,"Heat only Table range items","Allowed Non HP Heat EQ","heat eq Detail range","x"]
["Oil",null,null,{"$f":"$B$62","v":"zTab_Furnaces"},"Warm air furnace","zHT_fuel"]
["Propane",null,null,{"$f":"$B$62","v":"zTab_Furnaces"},"Warm air duct furnace","zHT_fuel"]
["electric",null,null,{"$f":"$B$62","v":"zTab_Furnaces"},"Warm air unit heater","zHT_fuel"]
[null,null,null,{"$f":"$B$63","v":"ztab_unRatedHeatEq"},"Gas-fired Radiant","zHT_fuel"]
[null,null,null,{"$f":"$B$63","v":"ztab_unRatedHeatEq"},"Electric Strip Heat","zHt_electric"]
[null,null,null,{"$f":"$B$63","v":"ztab_unRatedHeatEq"},"Hot water or steam"]
[null,null,null,{"$f":"$B$63","v":"ztab_unRatedHeatEq"},"Other","zHT_fuel"]
[]
[null,null,null,null,"CRAC","zAC_CRAC","zTabHeat_nonHP"]
[]
[]
["Cooling Equipment",null,null,"Informative Only - Not used by form and not reviewed for 2015"]
[null,"Equipment Type","Condenser Type","cooling rating condition","heating  rating condition","taable","independent var","cooling ratings","heating ratings"]
["Air conditioner","Air conditioner","Air-cooled Split, Elec. Res. or No Heat","blank","na","C403.2.3(1) A","Res Ht / Non-res Ht","EER/IEER","none"]
[null,"Air conditioner","Air-cooled Split, Non-electric heat","blank","na","C403.2.3(1) A","Res Ht / Non-res Ht","EER/IEER","none"]
[null,"Air conditioner","Air-cooled Package, Elec. Res. or No Heat","blank","na","C403.2.3(1) A","Res Ht / Non-res Ht","EER/IEER","none"]
[null,"Air conditioner","Air-cooled Package, Non-electric heat","blank","na","C403.2.3(1) A","Res Ht / Non-res Ht","EER/IEER","none"]
[null,"Air conditioner","Water-cooled","split/single package same","na","C403.2.3(1) A","Res Ht / Non-res Ht","EER/IEER","none"]
[null,"Air conditioner","Evaporatively-cooled","split/single package same","na","C403.2.3(1) A","Res Ht / Non-res Ht","EER/IEER","none"]
["Thru the wall AC ","Thru the wall AC ","Air-cooled","split/single package same","na","C403.2.3(1) A","None","SEER","none"]
["Condensing unit","Condensing unit","Air-cooled","blank","na","C403.2.3(1) A","None","EER/IEER","none"]
[null,"Condensing unit","Water-cooled","blank","na","C403.2.3(1) A","None","EER/IEER","none"]
[null,"Condensing unit","Evaporatively-cooled","blank","na","C403.2.3(1) A","None","EER/IEER","none"]
["CRAC","CRAC","Air-cooled","blank","na","C403.2.3(9)","up flow / down flow","SCOP","none"]
[null,"CRAC","Water-cooled","blank","na","C403.2.3(9)","up flow / down flow","SCOP","none"]
[null,"CRAC","Water-cooled with economizer","blank","na","C403.2.3(9)","up flow / down flow","SCOP","none"]
[null,"CRAC","Glycol-cooled (40%)","blank","na","C403.2.3(9)","up flow / down flow","SCOP","none"]
[null,"CRAC","Glycol-cooled (40%) with economizer","blank","na","C403.2.3(9)","up flow / down flow","SCOP","none"]
["VRF AC","VRF Air Conditioner","Air-cooled, Elec. Res. or No Heat","VRF multi-split system","na","C403.2.3(1) B",null,"EER/IEER","none"]
[null,"VRF Air Conditioner","Air-cooled, Non-electric heat","VRF multi-split system","na","C403.2.3(1) B",null,"EER/IEER","none"]
["VRF HP","VRF Heat pump","Air-cooled, Elec. Res. or No Heat","VRF multi-split system","VRF multi-split system at 17F and 47F","C403.2.3(1) C","could by std and with HR here","EER/IEER","cop at 17F and 47F"]
[null,"VRF Heat pump","Air-cooled, Non-electric heat","VRF multi-split system","VRF multi-split system at 17F and 47F","C403.2.3(1) C","could by std and with HR here","EER/IEER","cop at 17F and 47F"]
[null,"VRF Heat pump","Water source","VRF multi-split systems 86F entering water","VRF multi-split systems 68F entering water","C403.2.3(1) C","could by std and with HR here","EER/IEER","cop"]
[null,"VRF Heat pump","Groundwater source","VRF multi-split systems 59F entering water","VRF multi-split systems 50F entering water","C403.2.3(1) C","could by std and with HR here","EER/IEER","cop"]
[null,"VRF Heat pump","Ground source","VRF multi-split systems 77F entering water","VRF multi-split systems 32F entering water","C403.2.3(1) C","could by std and with HR here","EER/IEER","cop"]
["VRF HP with Heat recovery","VRF HP with heat recovery","Air-cooled","VRF multi-split system","VRF multi-split system at 17F and 47F","C403.2.3(1) C","could by std and with HR here","EER/IEER","cop at 17F and 47F"]
[null,"VRF HP with heat recovery","Water-cooled","VRF multi-split systems 86F entering water","VRF multi-split systems 68F entering water","C403.2.3(1) C","could by std and with HR here","EER/IEER","cop"]
[null,"VRF HP with heat recovery","Groundwater source","VRF multi-split systems 59F entering water","VRF multi-split systems 50F entering water","C403.2.3(1) C","could by std and with HR here","EER/IEER","cop"]
[null,"VRF HP with heat recovery","Ground source","VRF multi-split systems 77F entering water","VRF multi-split systems 32F entering water","C403.2.3(1) C","could by std and with HR here","EER/IEER","cop"]
["Heat pump","Heat pump","Air-cooled, Elec. Res. or No Heat","split/single package same","Split and package the same at 17F and 47F","C403.2.3(2)",null,"EER/IEER","cop at 17F and 47F"]
[null,"Heat pump","Air-cooled, Non-electric heat","split/single package same","Split and package the same at 17F and 47F","C403.2.3(2)",null,"EER/IEER","cop at 17F and 47F"]
[null,"Heat pump","Water source","86F entering water","68F entering water","C403.2.3(2)",null,"EER","cop"]
[null,"Heat pump","Ground water source","59F entering water","50F entering water","C403.2.3(2)",null,"EER","cop"]
[null,"Heat pump","Ground source","77F entering water","32F entering water","C403.2.3(2)",null,"EER","cop"]
[null,"Heat pump","Water source - water to water","86F entering water & 59F entering water","68F entering water & 50F entering water","C403.2.3(2)",null,"EER at 86F & EER at 59F","cop at 68F & 50F"]
[null,"Heat pump","Ground water source - brine to water","77F entering water","32F entering water","C403.2.3(2)",null,"EER","cop"]
["Thru the wall HP","Thru the wall HP","Air-cooled","split/single package same","split/single package same","C403.2.3(2)",null,"SEER","HSPF"]
["Small duct high velocity HP","Small duct high velocity HP","Air-cooled","blank","split only","C403.2.3(2)","None","none","hspf"]
["PTAC","PTAC, New Construction","New Construction","95F db outdoor air","na","C403.2.3(3)","could have new cons & replacement here","EER","none"]
[null,"PTAC, Non-standard size replacement","Replacement","95F db outdoor air","na","C403.2.3(3)","could have new cons & replacement here","EER","none"]
["PTHP","PTHP, New construction","New Construction","95F db outdoor air","blank","C403.2.3(3)","could have new cons & replacement here","EER","COP"]
[null,"PTHP, Non-standard size replacement","Replacement","95F db outdoor air","blank","C403.2.3(3)","could have new cons & replacement here","EER","COP"]
["SPVAC","SPVAC","Air-cooled","95F db / 75F wb outdoor air","blank","C403.2.3(3)",null,"EER","COP"]
["SPVHP","SPVHP","Air-cooled","95F db / 75F wb outdoor air","47F db / 43F wb outdoor air","C403.2.3(3)",null,"EER","COP"]
["Room AC","Room AC, louvered","louvered","blank","na","C403.2.3(3)","or could have louvered non-louvered here","EER","none"]
[null,"Room AC, not louvered","not louvered","blank","na","C403.2.3(3)","or could have louvered non-louvered here","EER","none"]
[null,"Room AC, casement","casement","blank","na","C403.2.3(3)","or could have casement, casement-slider over here","EER","none"]
[null,"Room AC, casement-slide","slide","blank","na","C403.2.3(3)","or could have casement, casement-slider over here","EER","none"]
["Room HP","Room HP, louvered","louvered","blank","na","C403.2.3(3)","or could have louvered non-louvered here","EER","none"]
[null,"Room HP, not louvered","not louvered","blank","na","C403.2.3(3)","or could have louvered non-louvered here","EER","none"]
["Chilled Water","Chilled Water","None","blank","na","no",null,"none","none"]
["Evaporative","Evaporative","None","blank","na","no",null,"none","none"]
["None","None","None"]
[]
[]
["64% / 59% Exp 3"]
["15% Exp 5"]
["15% Exp 6"]
["20% Exp 8"]
["15% Exp 10a"]
[" 5% Exp10b"]
["15% C503.4 Exp 2"]
["25% C503.4 Exp 3"]
[]
[]
[]
["Yes"]
["Not Required"]

{"sheet":"MECH-EQ BOILER-CHILLER","index":15,"n_rows":74,"n_cols":9,"rows_kept":74,"cut":false,"hidden":true,"merged":[[2,2,2,5],[18,0,18,8],[7,0,7,7],[3,3,3,5],[4,3,4,5],[5,3,5,5]]}
["Boiler and Chiller Equipment Schedule",null,null,null,null,null,null,null,"MECH-EQ"]
[{"$f":"ReadMe!A2","v":"2015 Washington State Energy Code Compliance Forms for Commercial Buildings including R2 & R3 over 3 stories and all R1 "},null,null,null,null,null,null,null,{"$f":"ReadMe!B3","v":"Revised January 2017"}]
["Project Title:",null,{"$f":"IF('MECH-SUM'!D3=\"1 - This title will copy onto other forms\",\"Fill this line out on MECH-SUM\",IF('MECH-SUM'!D3=0,\"\",'MECH-SUM'!D3))","v":"Fill this line out on MECH-SUM"},null,null,null,{"$f":"'MECH-SUM'!H3","v":"2015-01-01"}]
[null,null,null,null,null,null,"For Building Dept. Use"]
[]
[]
[]
["Boilers"]
["Equip.\nID","Make & Model","Equipment Type","Rated Heating Capacity, Btu/h","Rated Efficiency (Note 1)","Part Load Controls \n(Note 2)","Burner Controls\n(Note 3)","Notes"]
[]
[]
[]
[]
[]
[]
[]
[]
[]
["Chillers"]
["Equip.\nID","Make & Model","Equipment Type","Rated Capacity  (tons) \n(Note 4)","Part Load Controls \n(Note 2)","Non-Standard Calculation or Low Temp Exception \n(Note 5)","Rated Full Load Efficiency \n(Note 6)","Rated IPLV \n(Note 6)","Compliance Path \n(Note 7) "]
[]
[]
[]
[]
[]
[]
[]
[]
[]
[]
["Boiler - Hot water","gas-fired"]
[null,"oil-fired"]
["Boiler - Steam","gas-fired natural draft"]
[null,"gas-fired non-natural draft"]
[null,"oil-fired"]
[]
[]
[]
["Gas-fired hot water boiler"]
["Oil-fired hot water boiler"]
["Gas-fired, natural draft steam boiler"]
["Gas-fired, non-natural draft steam boiler"]
["Oil-fired steam boiler"]
["Electric boiler"]
[]
[]
["Air-cooled"]
["Water cooled, electrically operated, positive displacement"]
["Water cooled, electrically operated, centrifugal"]
["Absorption, air-cooled, single effect"]
["Absorption, water-cooled, single effect"]
["Absorption, double effect, indirect fired"]
["Absorption, double effect, direct fired"]
[]
["Chiller Alternates"]
["C403.2.3.1 Calculation"]
["Centrifugal with design leaving fluid temperature < 36°F"]
["Positive displacement with design leaving fluid temperature < 32°F"]
["Absorption with design leaving fluid temperature < 40°F"]
[]
[]
[]
["Compliance paths"]
["Path A"]
["Path B"]
[]
["Supply water temp. reset"]
["50% reduction in pump flow"]
["NA"]
[null,null,null,"old",null,500,"any modulation"]
["Multi-stage",null,null,"Multi-stage",null,"1000-5000","1:3"]
["Modulating",null,null,"Modulating",null,"5000-10000","1:4"]
["staged boilers",null,null,"NA",null,">10000","1:5"]
["NA"]

{"sheet":"MECH-EQ HEAT REJECTION","index":16,"n_rows":44,"n_cols":17,"rows_kept":44,"cut":false,"hidden":true,"merged":[[26,2,26,3],[27,2,27,3],[28,2,28,3],[8,4,9,4],[19,4,20,4],[21,2,21,3],[22,2,22,3],[23,2,23,3],[24,2,24,3],[25,2,25,3],[10,2,10,3],[11,2,11,3],[12,2,12,3],[13,2,13,3],[14,2,14,3],[18,0,18,8],[19,0,20,0],[19,1,20,1],[19,5,19,8],[19,2,20,3],[2,5,2,8],[7,0,7,8],[8,0,9,0],[8,1,9,1],[8,5,8,8],[3,3,3,4],[4,3,4,4],[5,3,5,4],[8,2,9,3]]}
["Heat Rejection Equipment Schedule",null,null,null,null,null,null,null,"MECH-EQ"]
[{"$f":"ReadMe!A2","v":"2015 Washington State Energy Code Compliance Forms for Commercial Buildings including R2 & R3 over 3 stories and all R1 "},null,null,null,null,null,null,null,{"$f":"ReadMe!B3","v":"Revised January 2017"}]
["Project Title:",null,{"$f":"IF('MECH-SUM'!D3=\"1 - This title will copy onto other forms\",\"Fill this line out on MECH-SUM\",IF('MECH-SUM'!D3=0,\"\",'MECH-SUM'!D3))","v":"Fill this line out on MECH-SUM"},null,null,{"$f":"'MECH-SUM'!H3","v":"2015-01-01"}]
[null,null,null,null,null,"For Building Dept. Use"]
[]
[]
[]
["Open and Closed Circuit Cooling Towers (Water Cooled Heat Rejection Equipment)"]
["Equip.\nID","Make & Model","Equipment Type",null,"Fan Variable Flow Control","At CTI Rated Conditions (Note 1)"]
[null,null,null,null,null,"Tower Pump GPM","Tower Fan HP","GPM/HP \n(Note 2)","Efficiency Compliance \n(Note 3)"]
[null,null,null,null,null,null,null,{"$f":"IF(G11=\"\",\"\",F11/G11)","v":""},{"$f":"IF(H11=\"\",\"\",IF(ISNA(VLOOKUP(C11,$A$35:$B$38,2,FALSE)),\"Col C?\",IF(H11>VLOOKUP(C11,$A$35:$B$38,2,FALSE),\"COMPLIES\",\"DOES NOT COMPLY\")))","v":""}]
[null,null,null,null,null,null,null,{"$f":"IF(G12=\"\",\"\",F12/G12)","v":""},{"$f":"IF(H12=\"\",\"\",IF(ISNA(VLOOKUP(C12,$A$35:$B$38,2,FALSE)),\"Col C?\",IF(H12>VLOOKUP(C12,$A$35:$B$38,2,FALSE),\"COMPLIES\",\"DOES NOT COMPLY\")))","v":""}]
[null,null,null,null,null,null,null,{"$f":"IF(G13=\"\",\"\",F13/G13)","v":""},{"$f":"IF(H13=\"\",\"\",IF(ISNA(VLOOKUP(C13,$A$35:$B$38,2,FALSE)),\"Col C?\",IF(H13>VLOOKUP(C13,$A$35:$B$38,2,FALSE),\"COMPLIES\",\"DOES NOT COMPLY\")))","v":""}]
[null,null,null,null,null,null,null,{"$f":"IF(G14=\"\",\"\",F14/G14)","v":""},{"$f":"IF(H14=\"\",\"\",IF(ISNA(VLOOKUP(C14,$A$35:$B$38,2,FALSE)),\"Col C?\",IF(H14>VLOOKUP(C14,$A$35:$B$38,2,FALSE),\"COMPLIES\",\"DOES NOT COMPLY\")))","v":""}]
[null,null,null,null,null,null,null,{"$f":"IF(G15=\"\",\"\",F15/G15)","v":""},{"$f":"IF(H15=\"\",\"\",IF(ISNA(VLOOKUP(C15,$A$35:$B$38,2,FALSE)),\"Col C?\",IF(H15>VLOOKUP(C15,$A$35:$B$38,2,FALSE),\"COMPLIES\",\"DOES NOT COMPLY\")))","v":""}]
[]
[]
[]
["Air Cooled Condenser Equipment",null,null,null,null,null,null,null,null,null,null,null,null,null,null,null,1]
["Equip.\nID","Make & Model","Equipment Type",null,null,"At ARI Rated Conditions (Note 4)"]
[null,null,null,null,null,"Heat Rejected (Btu/h)","Condenser Fan HP","Btu / h-HP\n(Note 5)","Efficiency Compliance\n(Note 6)"]
[null,null,null,null,null,null,null,{"$f":"IF(G22=\"\",\"\",F22/G22)","v":""},{"$f":"IF(H22=\"\",\"\",IF(ISNA(VLOOKUP(C22,$A$41:$B$41,2,FALSE)),\"Col C?\",IF(H22>VLOOKUP(C22,$A$41:$B$41,2,FALSE),\"COMPLIES\",\"DOES NOT COMPLY\")))","v":""}]
[null,null,null,null,null,null,null,"",""]
[null,null,null,null,null,null,null,"",""]
[null,null,null,null,null,null,null,"",""]
[null,null,null,null,null,null,null,"",""]
[null,null,null,null,null,null,null,"",""]
[null,null,null,null,null,null,null,"",""]
[null,null,null,null,null,null,null,"",""]
[]
[]
[]
[]
[]
["Open circuit, propeller or axial fan",38.200000000000003]
["Open circuit, centrifugal fan",20]
["Closed circuit, propeller or axial fan",14]
["Closed circuit, centrifugal fan",7]
[]
[]
["Air cooled condenser",176000]
[]
["Yes"]
["No"]

{"sheet":"MECH-EQ AIR SYSTEM TERMINALS","index":17,"n_rows":60,"n_cols":6,"rows_kept":60,"cut":false,"hidden":true,"merged":[[6,0,7,0],[6,1,7,1],[6,2,7,2],[6,3,6,4],[3,3,3,4],[4,3,4,4],[5,3,5,4]]}
["Multiple Zone Air System Terminal Schedule",null,null,null,null,"MECH-EQ"]
[{"$f":"ReadMe!A2","v":"2015 Washington State Energy Code Compliance Forms for Commercial Buildings including R2 & R3 over 3 stories and all R1 "}]
["Project Title:",null,{"$f":"IF('MECH-SUM'!D3=\"1 - This title will copy onto other forms\",\"Fill this line out on MECH-SUM\",IF('MECH-SUM'!D3=0,\"\",'MECH-SUM'!D3))","v":"Fill this line out on MECH-SUM"},null,null,{"$f":"'MECH-SUM'!H3","v":"2015-01-01"}]
[null,null,null,null,null,"For Building Dept. Use"]
[]
[]
["Equip.\nID","Maximum Airflow (cfm)","Maximum Airflow During Reheating or Recooling (cfm)","Ventilation (Note 1)"]
[null,null,null,"Ventilation Standard","Mininum \nAirflow (cfm)","Basis of Compliance (Note 2)"]
[]
[]
[]
[]
[]
[]
[]
[]
[]
[]
[]
[]
[]
[]
[]
[]
[]
[]
[]
[]
[]
[]
[]
[]
[]
[]
[]
[]
[]
[]
[]
[]
[]
[]
[]
["No reconditioning at terminal"]
["Reconditioning CFM ≤ 30% Maximum CFM"]
["Reconditioning CFM ≤ 300 CFM"]
["Reconditioning CFM ≤ IMC Ventilation"]
["Reconditioning CFM ≤ Alternate health/safety ventilation standard"]
["75% of zone or supply air system reheat or mixing energy is provided by site-recovered or site-solar"]
["Zone with special humidity requirements for process needs"]
[]
["old exception list"]
["75% of zone or supply air system reheat or mixing energy is provided by site-recovered or site-solar"]
["Zone with special humidity requirements for process needs"]
[]
["IMC"]
["OSHA"]
["WAC"]
["IFC"]
["ASHRAE 62.1"]